Body,Body Name,Date,TransNo,Amount � (Excl VAT),Supplier name,Description,Expense Area,Expense Type,Expense Code,
http://opendatacommunities.org/id/london-borough-council/sutton,London Borough of Sutton,31/01/2020,1291103,0.00 , WWW.BEST4FLOORING.CO.U,DI,Unknown or multiple Directorates,Exchange Diff Account,9995,
http://opendatacommunities.org/id/london-borough-council/sutton,London Borough of Sutton,04/02/2020,1291103,30.00 , OUT OF SCHOOL ALLIANCE,MEMBERSHIP,Peoples Services Directorate,Education Equipment,F009,
http://opendatacommunities.org/id/london-borough-council/sutton,London Borough of Sutton,20/02/2020,1291103,31.27 , WWW.GOMPELS.CO.UK,HAND SANITIZER,Peoples Services Directorate,First Aid and Medical Requisites,F105,
http://opendatacommunities.org/id/london-borough-council/sutton,London Borough of Sutton,14/02/2020,1291103,10.17 , AMZNMKTPLACE AMAZON.CO,FIRST AID GLOVES/APRONS,Peoples Services Directorate,First Aid and Medical Requisites,F105,
http://opendatacommunities.org/id/london-borough-council/sutton,London Borough of Sutton,03/02/2020,1291103,11.65 , AMZNMKTPLACE,FIRST AID,Peoples Services Directorate,First Aid and Medical Requisites,F105,
http://opendatacommunities.org/id/london-borough-council/sutton,London Borough of Sutton,10/02/2020,1291103,48.30 , W M MORRISONS.COM,GROCERIES,Peoples Services Directorate,Provisions - General,F150,
http://opendatacommunities.org/id/london-borough-council/sutton,London Borough of Sutton,03/02/2020,1291103,45.35 , W M MORRISONS.COM,GROCERIES,Peoples Services Directorate,Provisions - General,F150,
http://opendatacommunities.org/id/london-borough-council/sutton,London Borough of Sutton,24/02/2020,1291103,85.47 , W M MORRISONS.COM,GROCERIES,Peoples Services Directorate,Refreshments,F155,
http://opendatacommunities.org/id/london-borough-council/sutton,London Borough of Sutton,17/02/2020,1291103,42.39 , ASDA SUPERSTORE,GROCERIES,Peoples Services Directorate,Refreshments,F155,
http://opendatacommunities.org/id/london-borough-council/sutton,London Borough of Sutton,27/01/2020,1291103,46.85 , W M MORRISONS.COM,GROCERIES,Peoples Services Directorate,Refreshments,F155,
http://opendatacommunities.org/id/london-borough-council/sutton,London Borough of Sutton,24/02/2020,1291103,40.08 , CAPITA RECRUITMENT VET,DBS,Peoples Services Directorate,Other Services,F340,
http://opendatacommunities.org/id/london-borough-council/sutton,London Borough of Sutton,06/02/2020,1291103,129.87 , WWW.TENPIN.CO.UK,129.87 - F106 0044 9999 - TENPIN BOWLING CROYDON,Peoples Services Directorate,Personal Requisites,F106,
http://opendatacommunities.org/id/london-borough-council/sutton,London Borough of Sutton,17/02/2020,1291103,60.66 , VUE ENTERTAINMENT LTD,60.66 - F106 0044 9999 - VUE CINEMA PURLEY WAY,Peoples Services Directorate,Personal Requisites,F106,
http://opendatacommunities.org/id/london-borough-council/sutton,London Borough of Sutton,14/02/2020,1291103,20.00 , OYSTER AUTO-TOP UP,OYSTER CARD TOP UP,Peoples Services Directorate,Staff Travelling Expenses,E130,
http://opendatacommunities.org/id/london-borough-council/sutton,London Borough of Sutton,12/02/2020,1291103,20.00 , OYSTER BUS AUTOLOAD,OYSTER TOP-UP,Peoples Services Directorate,Staff Travelling Expenses,E130,
http://opendatacommunities.org/id/london-borough-council/sutton,London Borough of Sutton,08/02/2020,1291103,20.00 , OYSTER AUTO-TOP UP,OYSTER CARD TOP UP,Peoples Services Directorate,Staff Travelling Expenses,E130,
http://opendatacommunities.org/id/london-borough-council/sutton,London Borough of Sutton,06/02/2020,1291103,40.00 , OYSTER AUTO-TOP UP,OYSTER CARD TOP UP,Peoples Services Directorate,Staff Travelling Expenses,E130,
http://opendatacommunities.org/id/london-borough-council/sutton,London Borough of Sutton,03/02/2020,1291103,20.00 , OYSTER BUS AUTOLOAD,OYSTER TOP UP,Peoples Services Directorate,Staff Travelling Expenses,E130,
http://opendatacommunities.org/id/london-borough-council/sutton,London Borough of Sutton,30/01/2020,1291103,20.00 , OYSTER AUTO-TOP UP,OYSTER CARD,Peoples Services Directorate,Staff Travelling Expenses,E130,
http://opendatacommunities.org/id/london-borough-council/sutton,London Borough of Sutton,10/02/2020,1291103,100.00 , NATECLA,SUBSCRIPTION,Peoples Services Directorate,Subscriptions - General,F450,
http://opendatacommunities.org/id/london-borough-council/sutton,London Borough of Sutton,21/02/2020,1291103,18.75 , SP   LEARNPAC SYSTEMS,MANDATORY SAFEGUARDING ON-LINE TRAINING,Peoples Services Directorate,Training - Course Fees,A520,
http://opendatacommunities.org/id/london-borough-council/sutton,London Borough of Sutton,31/01/2020,1291103,20.00 , EDUCATION & TRAINI,TRAINING COURSE,Peoples Services Directorate,Training - Course Fees,A520,
http://opendatacommunities.org/id/london-borough-council/sutton,London Borough of Sutton,31/01/2020,1291103,20.00 , EDUCATION & TRAINI,TRAINING COURSE,Peoples Services Directorate,Training - Course Fees,A520,
http://opendatacommunities.org/id/london-borough-council/sutton,London Borough of Sutton,31/01/2020,1291103,20.00 , EDUCATION & TRAINI,TRAINING COURSE,Peoples Services Directorate,Training - Course Fees,A520,
http://opendatacommunities.org/id/london-borough-council/sutton,London Borough of Sutton,21/02/2020,1291103,18.75 , SP   LEARNPAC SYSTEMS,SAFEGUARDING ON-LINE MANDATORY TRAINING,Peoples Services Directorate,Training - Travel and Subsistence,A521,
http://opendatacommunities.org/id/london-borough-council/sutton,London Borough of Sutton,28/01/2020,1291103,19.10 , NEW SOUTHERN RAILW,TRAVEL TO AND FROM PREVENT NETWORK MEETING - WESTMINSTER KINGSWAY COLLEGE,Peoples Services Directorate,Travelling and Subsistence Allowances,A530,
http://opendatacommunities.org/id/london-borough-council/sutton,London Borough of Sutton,17/02/2020,1291103,69.00 , HAYMARKET MEDIA GROUP,CIPD TRAINING NAT FREND,Peoples Services Directorate,Miscellaneous Training Courses,F304,
http://opendatacommunities.org/id/london-borough-council/sutton,London Borough of Sutton,30/01/2020,1291103,552.82 , MOJO HELPDESK,IT TRAINING,Peoples Services Directorate,Training - Course Fees,A520,
http://opendatacommunities.org/id/london-borough-council/sutton,London Borough of Sutton,30/01/2020,1291103,15.20 , SP   SENSORYTRUST,TRAINING,Peoples Services Directorate,Training - Course Fees,A520,
http://opendatacommunities.org/id/london-borough-council/sutton,London Borough of Sutton,30/01/2020,1291103,65.93 , MAILCHIMP    MONTHLY,MONTHLY SUBSCRIBERS,Peoples Services Directorate,Advertising/Publicity (non Staff),F240,
http://opendatacommunities.org/id/london-borough-council/sutton,London Borough of Sutton,20/02/2020,1291103,154.50 , TVLICENSING.CO.UK,TV LICENCE SUTTON CENTRE,Peoples Services Directorate,Subscriptions - General,F450,
http://opendatacommunities.org/id/london-borough-council/sutton,London Borough of Sutton,28/01/2020,1291103,23.90 , AMZNMKTPLACE AMAZON.CO,LIGHTBULBS,Peoples Services Directorate,General Maintenance,D500,
http://opendatacommunities.org/id/london-borough-council/sutton,London Borough of Sutton,25/02/2020,1291103,24.53 , FIREPLUG,SUPERWOOL,Peoples Services Directorate,Education Equipment,F009,
http://opendatacommunities.org/id/london-borough-council/sutton,London Borough of Sutton,25/02/2020,1291103,113.54 , WARM GLASS LTD,VARIOUS GLASS,Peoples Services Directorate,Education Equipment,F009,
http://opendatacommunities.org/id/london-borough-council/sutton,London Borough of Sutton,25/02/2020,1291103,15.50 , TUFFNELLGLA,GLOW POWDER AQUA/BLUE & YELLOW/GREEN,Peoples Services Directorate,Education Equipment,F009,
http://opendatacommunities.org/id/london-borough-council/sutton,London Borough of Sutton,09/02/2020,1291103,14.96 , AMZNMKTPLACE AMAZON.CO,MICROPHONE AND CABLE,Peoples Services Directorate,Education Equipment,F009,
http://opendatacommunities.org/id/london-borough-council/sutton,London Borough of Sutton,28/01/2020,1291103,30.84 , I.S SUNDRIES LTD,CHRYSAL FLORAL FOAM ELITE,Peoples Services Directorate,Education Equipment,F009,
http://opendatacommunities.org/id/london-borough-council/sutton,London Borough of Sutton,31/01/2020,1291103,7.20 , MELBOURNE NURSERY,DEMO MATERIALS FOUNDATION L2 AND L3,Peoples Services Directorate,Education Equipment,F009,
http://opendatacommunities.org/id/london-borough-council/sutton,London Borough of Sutton,13/02/2020,1291103,22.90 , MELBOURNE NURSERY,FLOWERS AND FOLEAGE FOUNDATION AND L3 FLORISTRY,Peoples Services Directorate,Education Equipment,F009,
http://opendatacommunities.org/id/london-borough-council/sutton,London Borough of Sutton,10/02/2020,1291103,14.26 , MELBOURNE NURSERY,FLOWERS AND FOLEAGE L2 FLORISTRY,Peoples Services Directorate,Education Equipment,F009,
http://opendatacommunities.org/id/london-borough-council/sutton,London Borough of Sutton,06/02/2020,1291103,9.99 , MELBOURNE NURSERY,FLOWERS AND FOLEAGE L3 FLORISTRY,Peoples Services Directorate,Education Equipment,F009,
http://opendatacommunities.org/id/london-borough-council/sutton,London Borough of Sutton,06/02/2020,1291103,6.16 , MELBOURNE NURSERY,FLOWERS AND FOLEAGE FOUNDATION FLORISTRY,Peoples Services Directorate,Education Equipment,F009,
http://opendatacommunities.org/id/london-borough-council/sutton,London Borough of Sutton,03/02/2020,1291103,5.00 , MELBOURNE NURSERY,FLOWERS AND FOLEAGE L2 FLORISTRY,Peoples Services Directorate,Education Equipment,F009,
http://opendatacommunities.org/id/london-borough-council/sutton,London Borough of Sutton,25/02/2020,1291103,43.50 , WWW.MAJESTICTOWELS.CO.,MANICURE TOWELS,Peoples Services Directorate,Education Equipment,F009,
http://opendatacommunities.org/id/london-borough-council/sutton,London Borough of Sutton,25/02/2020,1291103,3.90 , WILKO RETAIL LIMITED,COOKERY MATERIALS,Peoples Services Directorate,Education Equipment,F009,
http://opendatacommunities.org/id/london-borough-council/sutton,London Borough of Sutton,25/02/2020,1291103,9.00 , ICELAND,COOKERY MATERIALS,Peoples Services Directorate,Education Equipment,F009,
http://opendatacommunities.org/id/london-borough-council/sutton,London Borough of Sutton,24/02/2020,1291103,20.65 , SAINSBURYS SACAT 2006,COOKERY MATERIALS,Peoples Services Directorate,Education Equipment,F009,
http://opendatacommunities.org/id/london-borough-council/sutton,London Borough of Sutton,12/02/2020,1291103,3.55 , SAINSBURYS SACAT 2006,COOKERY MATERIALS,Peoples Services Directorate,Education Equipment,F009,
http://opendatacommunities.org/id/london-borough-council/sutton,London Borough of Sutton,11/02/2020,1291103,5.70 , WILKO RETAIL LIMITED,COOKERY MATERIALS,Peoples Services Directorate,Education Equipment,F009,
http://opendatacommunities.org/id/london-borough-council/sutton,London Borough of Sutton,10/02/2020,1291103,29.75 , SAINSBURYS SACAT 2006,COOKERY MATERIALS,Peoples Services Directorate,Education Equipment,F009,
http://opendatacommunities.org/id/london-borough-council/sutton,London Borough of Sutton,05/02/2020,1291103,6.65 , SAINSBURYS SACAT 2006,COOKERY MATERIALS,Peoples Services Directorate,Education Equipment,F009,
http://opendatacommunities.org/id/london-borough-council/sutton,London Borough of Sutton,04/02/2020,1291103,3.50 , WILKO RETAIL LIMITED,COOKERY MATERIALS,Peoples Services Directorate,Education Equipment,F009,
http://opendatacommunities.org/id/london-borough-council/sutton,London Borough of Sutton,03/02/2020,1291103,15.96 , LIDL GB LONDON,COOKERY MATERIALS,Peoples Services Directorate,Education Equipment,F009,
http://opendatacommunities.org/id/london-borough-council/sutton,London Borough of Sutton,28/01/2020,1291103,3.20 , WILKO RETAIL LIMITED,COOKERY MATERIALS,Peoples Services Directorate,Education Equipment,F009,
http://opendatacommunities.org/id/london-borough-council/sutton,London Borough of Sutton,27/01/2020,1291103,20.17 , LIDL GB LONDON,COOKERY MATERIALS,Peoples Services Directorate,Education Equipment,F009,
http://opendatacommunities.org/id/london-borough-council/sutton,London Borough of Sutton,29/01/2020,1291103,5.50 , SP   SENSORYTRUST,SENSE STICKERS,Peoples Services Directorate,Education Equipment,F009,
http://opendatacommunities.org/id/london-borough-council/sutton,London Borough of Sutton,29/01/2020,1291103,11.50 , WWW.THEWORKS.CO.UK,"GLUE, TAPE AND PAINT",Peoples Services Directorate,Education Equipment,F009,
http://opendatacommunities.org/id/london-borough-council/sutton,London Borough of Sutton,06/02/2020,1291103,20.00 , OYSTER BUS AUTOLOAD,20.00 A530 0301 9999 OYSTER CARD,Peoples Services Directorate,Travelling and Subsistence Allowances,A530,
http://opendatacommunities.org/id/london-borough-council/sutton,London Borough of Sutton,02/02/2020,1291103,20.00 , OYSTER BUS AUTOLOAD,20.00 - A530 0301 9999 - OYSTER TOP UP,Peoples Services Directorate,Travelling and Subsistence Allowances,A530,
http://opendatacommunities.org/id/london-borough-council/sutton,London Borough of Sutton,30/01/2020,1291103,20.00 , OYSTER AUTO-TOP UP,20.00 - A530 0301 9999 - OYSTER TOP UP,Peoples Services Directorate,Travelling and Subsistence Allowances,A530,
http://opendatacommunities.org/id/london-borough-council/sutton,London Borough of Sutton,23/02/2020,1291103,20.00 , OYSTER BUS AUTOLOAD,20.00 - A530 0301 9999 - OYSTER TOP UP 24TH,Peoples Services Directorate,Travelling and Subsistence Allowances,A530,
http://opendatacommunities.org/id/london-borough-council/sutton,London Borough of Sutton,23/02/2020,1291103,20.00 , OYSTER AUTO-TOP UP,20.00 - A530 0301 9999 - OYSTER TOP UP 2,Peoples Services Directorate,Travelling and Subsistence Allowances,A530,
http://opendatacommunities.org/id/london-borough-council/sutton,London Borough of Sutton,21/02/2020,1291103,20.00 , OYSTER AUTO-TOP UP,20.00 - A530 0301 9999 - OYSTER TOP UP 24TH FEB .PNG,Peoples Services Directorate,Travelling and Subsistence Allowances,A530,
http://opendatacommunities.org/id/london-borough-council/sutton,London Borough of Sutton,21/02/2020,1291103,20.00 , OYSTER AUTO-TOP UP,20.00 - A530 0301 9999 - OYSTER TOP UP,Peoples Services Directorate,Travelling and Subsistence Allowances,A530,
http://opendatacommunities.org/id/london-borough-council/sutton,London Borough of Sutton,09/02/2020,1291103,20.00 , OYSTER AUTO-TOP UP,20.00 A530 0301 9999 OYSTER CARD,Peoples Services Directorate,Travelling and Subsistence Allowances,A530,
http://opendatacommunities.org/id/london-borough-council/sutton,London Borough of Sutton,04/02/2020,1291103,"4,206.50 ", WWW.IKEA.COM,4206.50 - Y500 S170 9999 - IKEA CARE LEAVERS .PNG,Peoples Services Directorate,Staff Advertising,A500,
http://opendatacommunities.org/id/london-borough-council/sutton,London Borough of Sutton,31/01/2020,1291103,120.47 , TRAINLINE,JL VISIT,Peoples Services Directorate,Training - Travel and Subsistence,A521,
http://opendatacommunities.org/id/london-borough-council/sutton,London Borough of Sutton,07/02/2020,1291103,20.60 , WWW.WIGHTLINK.CO.UK,20.60 0304 A530 9999 WIGHTLINK .PDF,Peoples Services Directorate,Travelling and Subsistence Allowances,A530,
http://opendatacommunities.org/id/london-borough-council/sutton,London Borough of Sutton,27/01/2020,1291103,50.00 , THE POST OFFICE,JC PRESENT,Peoples Services Directorate,Personal Requisites,F106,
http://opendatacommunities.org/id/london-borough-council/sutton,London Borough of Sutton,27/01/2020,1291103,(50.00), THE POST OFFICE,JC REVERSAL- ONE4ALL CARD NOT WORKING,Peoples Services Directorate,Personal Requisites,F106,
http://opendatacommunities.org/id/london-borough-council/sutton,London Borough of Sutton,14/02/2020,1291103,100.00 , POST OFFICE COUNTER,BDAYS X 4,Peoples Services Directorate,Personal Requisites,F106,
http://opendatacommunities.org/id/london-borough-council/sutton,London Borough of Sutton,14/02/2020,1291103,14.14 , MCDONALDS,MC ACT,Peoples Services Directorate,Personal Requisites,F106,
http://opendatacommunities.org/id/london-borough-council/sutton,London Borough of Sutton,06/02/2020,1291103,148.94 , ARGOS LTD,148.94 - F106 0304 9999 - ARGOS,Peoples Services Directorate,Personal Requisites,F106,
http://opendatacommunities.org/id/london-borough-council/sutton,London Borough of Sutton,07/02/2020,1291103,11.00 , LBSUTTON,BIRTH CERTIFICATE,Peoples Services Directorate,Personal Requisites,F106,
http://opendatacommunities.org/id/london-borough-council/sutton,London Borough of Sutton,25/02/2020,1291103,11.92 , MCDONALDS,MC ACT,Peoples Services Directorate,Personal Requisites,F106,
http://opendatacommunities.org/id/london-borough-council/sutton,London Borough of Sutton,23/02/2020,1291103,17.05 , SAINSBURYS SACAT 2006,JD GROG,Peoples Services Directorate,Personal Requisites,F106,
http://opendatacommunities.org/id/london-borough-council/sutton,London Borough of Sutton,20/02/2020,1291103,12.29 , COSTA COFFEE 43036750,JD JC ACT,Peoples Services Directorate,Personal Requisites,F106,
http://opendatacommunities.org/id/london-borough-council/sutton,London Borough of Sutton,06/02/2020,1291103,8.00 , PAPERCHASE PRODUCTS,JL CONGRAT,Peoples Services Directorate,Personal Requisites,F106,
http://opendatacommunities.org/id/london-borough-council/sutton,London Borough of Sutton,06/02/2020,1291103,14.79 , LEON,JL ACT,Peoples Services Directorate,Personal Requisites,F106,
http://opendatacommunities.org/id/london-borough-council/sutton,London Borough of Sutton,05/02/2020,1291103,40.47 , WWW.PIZZAGOGO.CO.UK,LIFE SKILLS FOOD,Peoples Services Directorate,Personal Requisites,F106,
http://opendatacommunities.org/id/london-borough-council/sutton,London Borough of Sutton,31/01/2020,1291103,275.74 , WWW.BEST4FLOORING.CO.U,DI,Peoples Services Directorate,Personal Requisites,F106,
http://opendatacommunities.org/id/london-borough-council/sutton,London Borough of Sutton,29/01/2020,1291103,70.00 , HS PRINTING AND COMPUT,MC,Peoples Services Directorate,Personal Requisites,F106,
http://opendatacommunities.org/id/london-borough-council/sutton,London Borough of Sutton,29/01/2020,1291103,26.86 , PFC WALLINGTON,LIFE SKILLS,Peoples Services Directorate,Personal Requisites,F106,
http://opendatacommunities.org/id/london-borough-council/sutton,London Borough of Sutton,28/01/2020,1291103,11.64 , MOON ON THE HILL,RA ACTIVITY,Peoples Services Directorate,Personal Requisites,F106,
http://opendatacommunities.org/id/london-borough-council/sutton,London Borough of Sutton,14/02/2020,1291103,12.50 , TESCO STORES 6637,MC GROCERIES,Peoples Services Directorate,Personal Requisites,F106,
http://opendatacommunities.org/id/london-borough-council/sutton,London Borough of Sutton,12/02/2020,1291103,5.53 , MCDONALDS911,MC ACT,Peoples Services Directorate,Personal Requisites,F106,
http://opendatacommunities.org/id/london-borough-council/sutton,London Borough of Sutton,08/02/2020,1291103,22.33 , LIDL GB LONDON,JD LL,Peoples Services Directorate,Personal Requisites,F106,
http://opendatacommunities.org/id/london-borough-council/sutton,London Borough of Sutton,07/02/2020,1291103,19.00 , SAINSBURYS SACAT (4278,DR GROGERIES,Peoples Services Directorate,Personal Requisites,F106,
http://opendatacommunities.org/id/london-borough-council/sutton,London Borough of Sutton,07/02/2020,1291103,5.50 , THE POST OFFICE,JL POSTAGE,Peoples Services Directorate,Personal Requisites,F106,
http://opendatacommunities.org/id/london-borough-council/sutton,London Borough of Sutton,30/01/2020,1291103,93.94 , ARGOS LTD,CARE LEAVER EQUIPMENT,Peoples Services Directorate,Personal Requisites,F106,
http://opendatacommunities.org/id/london-borough-council/sutton,London Borough of Sutton,30/01/2020,1291103,(93.94), ARGOS LTD,CARE LEAVER EQUIPMENT,Peoples Services Directorate,Personal Requisites,F106,
http://opendatacommunities.org/id/london-borough-council/sutton,London Borough of Sutton,14/02/2020,1291103,64.00 , HOTEL ON BOOKING.COM,16.74 F106 0304 9999 AMAZON.PDF,Peoples Services Directorate,Personal Requisites,F106,
http://opendatacommunities.org/id/london-borough-council/sutton,London Borough of Sutton,12/02/2020,1291103,13.75 , AMAZON.CO.UK ML8U81S24,SPLIT - HELPING VULNERABLE CHILDREN AND ADOLESCENTS TO STAY SAFE: CREATIVE IDEAS AND ACTIVITIES FOR BUILDING PROTECTIVE BEHAVIOURS (82.14%),Peoples Services Directorate,Personal Requisites,F106,
http://opendatacommunities.org/id/london-borough-council/sutton,London Borough of Sutton,12/02/2020,1291103,2.99 , AMAZON.CO.UK ML8U81S24,BALANCING ENTRY AMOUNT (17.86%),Peoples Services Directorate,Personal Requisites,F106,
http://opendatacommunities.org/id/london-borough-council/sutton,London Borough of Sutton,20/02/2020,1291103,11.00 , WILTSHIRE COUNTY C,11.00 - F106 0304 9999 - SUTTON BIRTH CERTIFICATE . PNG.PNG,Peoples Services Directorate,Personal Requisites,F106,
http://opendatacommunities.org/id/london-borough-council/sutton,London Borough of Sutton,19/02/2020,1291103,11.00 , LBSUTTON,11.00 - F106 0304 9999 - SUTTON BIRTH CERTIFICATE . PNG.PNG,Peoples Services Directorate,Personal Requisites,F106,
http://opendatacommunities.org/id/london-borough-council/sutton,London Borough of Sutton,05/02/2020,1291103,412.95 , ARGOS LTD,412.95 F106 0304 9999 ARGOS.PDF,Peoples Services Directorate,Personal Requisites,F106,
http://opendatacommunities.org/id/london-borough-council/sutton,London Borough of Sutton,05/02/2020,1291103,449.98 , CURRYS ONLINE,449.98 F106 0304 CURRY.PDF,Peoples Services Directorate,Personal Requisites,F106,
http://opendatacommunities.org/id/london-borough-council/sutton,London Borough of Sutton,05/02/2020,1291103,331.28 , ARGOS LTD,331.28 F106 0304 9999 ARGOS.PDF,Peoples Services Directorate,Personal Requisites,F106,
http://opendatacommunities.org/id/london-borough-council/sutton,London Borough of Sutton,30/01/2020,1291103,93.94 , ARGOS LTD,ARGOS,Peoples Services Directorate,Personal Requisites,F106,
http://opendatacommunities.org/id/london-borough-council/sutton,London Borough of Sutton,27/01/2020,1291103,114.46 , EXPEDIA 7517184156372,114.46 - H202 0304 9999 - HOTEL EXPEDIA.,Peoples Services Directorate,Accommodation - Bed and Breakfast,H202,
http://opendatacommunities.org/id/london-borough-council/sutton,London Borough of Sutton,27/01/2020,1291103,(57.23), EXPEDIA 7517184156372,REFUND 57.23 - H202 0304 9999 - HOTEL EXPEDIA,Peoples Services Directorate,Accommodation - Bed and Breakfast,H202,
http://opendatacommunities.org/id/london-borough-council/sutton,London Borough of Sutton,27/01/2020,1291103,(57.23), EXPEDIA 7517184156372,REFUND 57.23- H202 0304 9999 - HOTEL EXPEDIA.PDF,Peoples Services Directorate,Accommodation - Bed and Breakfast,H202,
http://opendatacommunities.org/id/london-borough-council/sutton,London Borough of Sutton,17/02/2020,1291103,232.21 , TRAVELODGE,232.21 - H202 0304 9999 - TRAVELODGE CROYDON CENTRAL,Peoples Services Directorate,Accommodation - Bed and Breakfast,H202,
http://opendatacommunities.org/id/london-borough-council/sutton,London Borough of Sutton,27/01/2020,1291103,57.26 , MINICABIT,57.26 H212 0304 9999 MINICABIT,Peoples Services Directorate,C.C.A Travel & Subsistance,H212,
http://opendatacommunities.org/id/london-borough-council/sutton,London Borough of Sutton,13/02/2020,1291103,13.50 , NEW SOUTHERN RAILW,JMH LONDON,Peoples Services Directorate,C.C.A Travel & Subsistance,H212,
http://opendatacommunities.org/id/london-borough-council/sutton,London Borough of Sutton,11/02/2020,1291103,57.26 , MINICABIT,57.26 H212 0304 9999 MINICABIT,Peoples Services Directorate,C.C.A Travel & Subsistance,H212,
http://opendatacommunities.org/id/london-borough-council/sutton,London Borough of Sutton,04/02/2020,1291103,10.00 , VESTA VODAFONE,LEAVING CARE EQUIPMENT,Peoples Services Directorate,Client Care/Assistance,H301,
http://opendatacommunities.org/id/london-borough-council/sutton,London Borough of Sutton,05/02/2020,1291103,85.40 , WWW.SOUTHEASTERNRA,85.40 - H301 0304 9999 - PENALTY CHARGE .PNG,Peoples Services Directorate,Education Allowance,H321,
http://opendatacommunities.org/id/london-borough-council/sutton,London Borough of Sutton,05/02/2020,1291103,100.00 , ARGOS LTD,SH SET UP,Peoples Services Directorate,Set Up Costs - Children Leaving Care,H336,
http://opendatacommunities.org/id/london-borough-council/sutton,London Borough of Sutton,05/02/2020,1291103,281.95 , ARGOS LTD,SH SET UP,Peoples Services Directorate,Set Up Costs - Children Leaving Care,H336,
http://opendatacommunities.org/id/london-borough-council/sutton,London Borough of Sutton,17/02/2020,1291103,31.55 , AMAZON.CO.UK LG4062A05,MC,Peoples Services Directorate,Set Up Costs - Children Leaving Care,H336,
http://opendatacommunities.org/id/london-borough-council/sutton,London Borough of Sutton,17/02/2020,1291103,111.96 , ONLINE HOME SHOP,MC,Peoples Services Directorate,Set Up Costs - Children Leaving Care,H336,
http://opendatacommunities.org/id/london-borough-council/sutton,London Borough of Sutton,13/02/2020,1291103,87.00 , ARGOS LTD,JD SET UP,Peoples Services Directorate,Set Up Costs - Children Leaving Care,H336,
http://opendatacommunities.org/id/london-borough-council/sutton,London Borough of Sutton,12/02/2020,1291103,69.00 , BRITISH HEART FOUNDATI,JD SET UP 2,Peoples Services Directorate,Set Up Costs - Children Leaving Care,H336,
http://opendatacommunities.org/id/london-borough-council/sutton,London Borough of Sutton,11/02/2020,1291103,69.00 , BRITISH HEART FOUNDATI,JD SU,Peoples Services Directorate,Set Up Costs - Children Leaving Care,H336,
http://opendatacommunities.org/id/london-borough-council/sutton,London Borough of Sutton,05/02/2020,1291103,28.00 , UK DEED POLL SERVICE L,28.00 - X2 14 - H301 0305 9999 - DEED POLL - CHANGE OF NAME .PNG,Peoples Services Directorate,Client Care/Assistance,H301,
http://opendatacommunities.org/id/london-borough-council/sutton,London Borough of Sutton,05/02/2020,1291103,20.00 , OYSTER AUTO-TOP UP,20.00 - A530 0310 9999 - OYSTER TOP UP,Peoples Services Directorate,Travelling and Subsistence Allowances,A530,
http://opendatacommunities.org/id/london-borough-council/sutton,London Borough of Sutton,31/01/2020,1291103,20.00 , OYSTER AUTO-TOP UP,20.00 - A530 0310 9999 - OYSTER TOP UP,Peoples Services Directorate,Travelling and Subsistence Allowances,A530,
http://opendatacommunities.org/id/london-borough-council/sutton,London Borough of Sutton,29/01/2020,1291103,20.00 , OYSTER AUTO-TOP UP,20.00 - A530 0310 9999 - OYSTER TOP UP,Peoples Services Directorate,Travelling and Subsistence Allowances,A530,
http://opendatacommunities.org/id/london-borough-council/sutton,London Borough of Sutton,29/01/2020,1291103,20.00 , OYSTER AUTO-TOP UP,20.00 - A530 0310 9999 - OYSTER TOP UP,Peoples Services Directorate,Travelling and Subsistence Allowances,A530,
http://opendatacommunities.org/id/london-borough-council/sutton,London Borough of Sutton,15/02/2020,1291103,20.00 , OYSTER BUS AUTOLOAD,20.00 A530 0310 OYSTER CARD,Peoples Services Directorate,Travelling and Subsistence Allowances,A530,
http://opendatacommunities.org/id/london-borough-council/sutton,London Borough of Sutton,12/02/2020,1291103,20.00 , OYSTER BUS AUTOLOAD,20.00 - A530 0310 9999 - OYSTER TOP UP,Peoples Services Directorate,Travelling and Subsistence Allowances,A530,
http://opendatacommunities.org/id/london-borough-council/sutton,London Borough of Sutton,07/02/2020,1291103,20.00 , OYSTER AUTO-TOP UP,20.00 - A530 0310 9999 - OYSTER TOP UP,Peoples Services Directorate,Travelling and Subsistence Allowances,A530,
http://opendatacommunities.org/id/london-borough-council/sutton,London Borough of Sutton,06/02/2020,1291103,(4.24), AMZ SQUARE ONE ENTERPR,SPLIT - 12 X GOOD LUCK CARDS BY OLIVIA SAMUEL - FOLDING STYLE MULTI PACK WITH ENVELOPES (34.39%),Peoples Services Directorate,Personal Requisites,F106,
http://opendatacommunities.org/id/london-borough-council/sutton,London Borough of Sutton,06/02/2020,1291103,(4.24), AMZ SQUARE ONE ENTERPR,SPLIT - 12 X GOOD LUCK CARDS BY OLIVIA SAMUEL - FOLDING STYLE MULTI PACK WITH ENVELOPES (34.39%),Peoples Services Directorate,Personal Requisites,F106,
http://opendatacommunities.org/id/london-borough-council/sutton,London Borough of Sutton,28/01/2020,1291103,10.99 , AMZNMKTPLACE,SPLIT - 20 BIRTHDAY CARDS SERIES 1 BY KYOBO CREATIONS|10 DESIGNS FOR MEN AND WOMEN | MULTIPACK BLANK INSIDE WITH ENVELOPES AND FREE STICKERS (70.99%),Peoples Services Directorate,Personal Requisites,F106,
http://opendatacommunities.org/id/london-borough-council/sutton,London Borough of Sutton,28/01/2020,1291103,4.49 , AMZNMKTPLACE,BALANCING ENTRY AMOUNT (29.01%),Peoples Services Directorate,Personal Requisites,F106,
http://opendatacommunities.org/id/london-borough-council/sutton,London Borough of Sutton,28/01/2020,1291103,2.49 , AMZNMKTPLACE,SPLIT - THANK YOU CARDS - POLKA DOTS + WHITE ENVELOPES - SUITABLE FOR ALL OCCASIONS - PACK OF 10 (94.1%),Peoples Services Directorate,Personal Requisites,F106,
http://opendatacommunities.org/id/london-borough-council/sutton,London Borough of Sutton,28/01/2020,1291103,0.19 , AMZNMKTPLACE,BALANCING ENTRY AMOUNT (5.9%),Peoples Services Directorate,Personal Requisites,F106,
http://opendatacommunities.org/id/london-borough-council/sutton,London Borough of Sutton,07/02/2020,1291103,3.32 , AMZNMKTPLACE,SPLIT - 12 X GOOD LUCK CARDS BY OLIVIA SAMUEL - FOLDING STYLE MULTI PACK WITH ENVELOPES (93.53%),Peoples Services Directorate,Personal Requisites,F106,
http://opendatacommunities.org/id/london-borough-council/sutton,London Borough of Sutton,07/02/2020,1291103,0.28 , AMZNMKTPLACE,BALANCING ENTRY AMOUNT (6.47%),Peoples Services Directorate,Personal Requisites,F106,
http://opendatacommunities.org/id/london-borough-council/sutton,London Borough of Sutton,07/02/2020,1291103,2.99 , AMZNMKTPLACE,"SPLIT - ECO-FRIENDLY, RECYCLED THANK YOU NOTE CARDS - 20 SIMPLE COLOURFUL THANK YOU NOTES WITH MATCHING GREEN RECYCLED ENVELOPES (92.64%)",Peoples Services Directorate,Personal Requisites,F106,
http://opendatacommunities.org/id/london-borough-council/sutton,London Borough of Sutton,07/02/2020,1291103,0.29 , AMZNMKTPLACE,BALANCING ENTRY AMOUNT (7.36%),Peoples Services Directorate,Personal Requisites,F106,
http://opendatacommunities.org/id/london-borough-council/sutton,London Borough of Sutton,07/02/2020,1291103,2.49 , AMZNMKTPLACE,SPLIT - THANK YOU CARDS - POLKA DOTS + WHITE ENVELOPES - SUITABLE FOR ALL OCCASIONS - PACK OF 10 (92.4%),Peoples Services Directorate,Personal Requisites,F106,
http://opendatacommunities.org/id/london-borough-council/sutton,London Borough of Sutton,07/02/2020,1291103,0.25 , AMZNMKTPLACE,BALANCING ENTRY AMOUNT (7.6%),Peoples Services Directorate,Personal Requisites,F106,
http://opendatacommunities.org/id/london-borough-council/sutton,London Borough of Sutton,06/02/2020,1291103,(3.85), AMZ SQUARE ONE ENTERPR,"SPLIT - ECO-FRIENDLY, RECYCLED THANK YOU NOTE CARDS - 20 SIMPLE COLOURFUL THANK YOU NOTES WITH MATCHING GREEN RECYCLED ENVELOPES (31.22%)",Peoples Services Directorate,Personal Requisites,F106,
http://opendatacommunities.org/id/london-borough-council/sutton,London Borough of Sutton,28/01/2020,1291103,530.98 , TRAVELODGE,ACCOMMODATION,Peoples Services Directorate,Accommodation - Bed and Breakfast,H202,
http://opendatacommunities.org/id/london-borough-council/sutton,London Borough of Sutton,01/02/2020,1291103,20.00 , OYSTER AUTO-TOP UP,20.00 - A530 0311 9999 - OYSTER TOP UP,Peoples Services Directorate,Travelling and Subsistence Allowances,A530,
http://opendatacommunities.org/id/london-borough-council/sutton,London Borough of Sutton,25/02/2020,1291103,20.00 , OYSTER ONLINE,OYSTER TOP UP,Peoples Services Directorate,Travelling and Subsistence Allowances,A530,
http://opendatacommunities.org/id/london-borough-council/sutton,London Borough of Sutton,22/02/2020,1291103,20.00 , OYSTER AUTO-TOP UP,20.00 - A530 0311 9999 - OYSTER TOP UP,Peoples Services Directorate,Travelling and Subsistence Allowances,A530,
http://opendatacommunities.org/id/london-borough-council/sutton,London Borough of Sutton,20/02/2020,1291103,20.00 , OYSTER AUTO-TOP UP,20.00 A530 0311 OYSTER CARD.PDF,Peoples Services Directorate,Travelling and Subsistence Allowances,A530,
http://opendatacommunities.org/id/london-borough-council/sutton,London Borough of Sutton,14/02/2020,1291103,20.00 , OYSTER BUS AUTOLOAD,20.00 - A530 0311 9999 - OYSTER CARD TOP UP,Peoples Services Directorate,Travelling and Subsistence Allowances,A530,
http://opendatacommunities.org/id/london-borough-council/sutton,London Borough of Sutton,12/02/2020,1291103,20.00 , OYSTER BUS AUTOLOAD,20.00 - A530 0311 9999 - OYSTER CARD TOP UP,Peoples Services Directorate,Travelling and Subsistence Allowances,A530,
http://opendatacommunities.org/id/london-borough-council/sutton,London Borough of Sutton,09/02/2020,1291103,20.00 , OYSTER BUS AUTOLOAD,20.00 - A530 0311 9999 - OYSTER TOP UP,Peoples Services Directorate,Travelling and Subsistence Allowances,A530,
http://opendatacommunities.org/id/london-borough-council/sutton,London Borough of Sutton,19/02/2020,1291103,55.00 , SI5 SPYMISSIONS LTD,55.00 - F106 0311 9999 - SPY MISSIONS .PNG,Peoples Services Directorate,Personal Requisites,F106,
http://opendatacommunities.org/id/london-borough-council/sutton,London Borough of Sutton,21/02/2020,1291103,11.00 , LBSUTTON,11 - F106 0311 9999 - DEATH CERTIFICATE.PNG,Peoples Services Directorate,Personal Requisites,F106,
http://opendatacommunities.org/id/london-borough-council/sutton,London Borough of Sutton,17/02/2020,1291103,8.09 , CHILD BEREAVEMENT UK,8.09 - F106 0311 9999 - CHILD BEREAVEMENT UK.,Peoples Services Directorate,Personal Requisites,F106,
http://opendatacommunities.org/id/london-borough-council/sutton,London Borough of Sutton,17/02/2020,1291103,13.45 , SP   WINSTONS WISH,13.45 - F106 0311 9999 - WINSTON'S WISH,Peoples Services Directorate,Personal Requisites,F106,
http://opendatacommunities.org/id/london-borough-council/sutton,London Borough of Sutton,15/02/2020,1291103,13.75 , AMAZON.CO.UK SM3MT2S85,SPLIT - HELPING VULNERABLE CHILDREN AND ADOLESCENTS TO STAY SAFE: CREATIVE IDEAS AND ACTIVITIES FOR BUILDING PROTECTIVE BEHAVIOURS (82.14%),Peoples Services Directorate,Personal Requisites,F106,
http://opendatacommunities.org/id/london-borough-council/sutton,London Borough of Sutton,15/02/2020,1291103,2.99 , AMAZON.CO.UK SM3MT2S85,BALANCING ENTRY AMOUNT (17.86%),Peoples Services Directorate,Personal Requisites,F106,
http://opendatacommunities.org/id/london-borough-council/sutton,London Borough of Sutton,09/02/2020,1291103,6.91 , AMAZON.CO.UK US84379H5,SPLIT - YOU ARE AWESOME: FIND YOUR CONFIDENCE AND DARE TO BE BRILLIANT AT (ALMOST) ANYTHING (12.71%),Peoples Services Directorate,Personal Requisites,F106,
http://opendatacommunities.org/id/london-borough-council/sutton,London Borough of Sutton,09/02/2020,1291103,12.72 , AMAZON.CO.UK US84379H5,"SPLIT - THE MOOD CARDS: UNDERSTAND DEEP EMOTIONS: EXPLORE MORE COMPLEX EMOTIONS AND BEHAVIOURS FOR HEALING, HAPPINESS AND INNER PEACE (MOOD SERIES) (23.4%)",Peoples Services Directorate,Personal Requisites,F106,
http://opendatacommunities.org/id/london-borough-council/sutton,London Borough of Sutton,09/02/2020,1291103,10.35 , AMAZON.CO.UK US84379H5,"SPLIT - THE MOOD CARDS: MAKE SENSE OF YOUR MOODS AND EMOTIONS FOR CLARITY, CONFIDENCE AND WELL-BEING (MOOD SERIES) (19.04%)",Peoples Services Directorate,Personal Requisites,F106,
http://opendatacommunities.org/id/london-borough-council/sutton,London Borough of Sutton,09/02/2020,1291103,21.89 , AMAZON.CO.UK US84379H5,SPLIT - A THERAPEUTIC TREASURE DECK OF FEELINGS AND SENTENCE COMPLETION CARDS (THERAPEUTIC TREASURES COLLECTION) (40.28%),Peoples Services Directorate,Personal Requisites,F106,
http://opendatacommunities.org/id/london-borough-council/sutton,London Borough of Sutton,09/02/2020,1291103,2.48 , AMAZON.CO.UK US84379H5,BALANCING ENTRY AMOUNT (4.57%),Peoples Services Directorate,Personal Requisites,F106,
http://opendatacommunities.org/id/london-borough-council/sutton,London Borough of Sutton,06/02/2020,1291103,52.80 , EMPIRE CINEMAS,52.80 - F106 0311 9999 - EMPIRE CINEMA TICKETS,Peoples Services Directorate,Personal Requisites,F106,
http://opendatacommunities.org/id/london-borough-council/sutton,London Borough of Sutton,03/02/2020,1291103,72.00 , PREMIER INN,ACCOMMODATION,Peoples Services Directorate,Accommodation - Bed and Breakfast,H202,
http://opendatacommunities.org/id/london-borough-council/sutton,London Borough of Sutton,30/01/2020,1291103,45.94 , TRAVELODGE,ACCOMMODATION,Peoples Services Directorate,Accommodation - Bed and Breakfast,H202,
http://opendatacommunities.org/id/london-borough-council/sutton,London Borough of Sutton,10/02/2020,1291103,82.99 , TRAVELODGE,82.99 H202 03111 9999 TRAVELODGE CARLISLE.PDF,Peoples Services Directorate,Accommodation - Bed and Breakfast,H202,
http://opendatacommunities.org/id/london-borough-council/sutton,London Borough of Sutton,28/01/2020,1291103,133.38 , EXPEDIA 7517507425204,133.38 - H202 0311 9999 - QUAYSIDE HOTEL .PNG,Peoples Services Directorate,Accommodation - Bed and Breakfast,H202,
http://opendatacommunities.org/id/london-borough-council/sutton,London Borough of Sutton,06/02/2020,1291103,50.00 , ABC TAXIS (KENT) LTD,50.00 - H202 0311 9999 - ABC TAXIS .PNG,Peoples Services Directorate,Accommodation - Bed and Breakfast,H202,
http://opendatacommunities.org/id/london-borough-council/sutton,London Borough of Sutton,31/01/2020,1291103,132.00 , EZYS TAXIS LTD,132.00 - H212 0311 9999 - EZYS TAXIS,Peoples Services Directorate,C.C.A Travel & Subsistance,H212,
http://opendatacommunities.org/id/london-borough-council/sutton,London Borough of Sutton,07/02/2020,1291103,300.00 , SUMUP ASHFORD TAXIS,TRAVEL,Peoples Services Directorate,C.C.A Travel & Subsistance,H212,
http://opendatacommunities.org/id/london-borough-council/sutton,London Borough of Sutton,17/02/2020,1291103,20.60 , WWW.WIGHTLINK.CO.UK,20.60 - H212 0311 9999 - WRIGHTLINK FERRIES,Peoples Services Directorate,C.C.A Travel & Subsistance,H212,
http://opendatacommunities.org/id/london-borough-council/sutton,London Borough of Sutton,25/02/2020,1291103,71.82 , MINICABIT,71.82 - H212 0311 9999 - MINICABIT .PNG,Peoples Services Directorate,C.C.A Travel & Subsistance,H212,
http://opendatacommunities.org/id/london-borough-council/sutton,London Borough of Sutton,17/02/2020,1291103,20.60 , WWW.WIGHTLINK.CO.UK,20.60 - H212 0311 9999 - WRIGHTLINK FERRIES,Peoples Services Directorate,C.C.A Travel & Subsistance,H212,
http://opendatacommunities.org/id/london-borough-council/sutton,London Borough of Sutton,11/02/2020,1291103,75.00 , SUMUP ASHFORD TAXIS,75.00 - H212 0311 9999 - ASHFORD TAXI,Peoples Services Directorate,C.C.A Travel & Subsistance,H212,
http://opendatacommunities.org/id/london-borough-council/sutton,London Borough of Sutton,11/02/2020,1291103,250.00 , ABC TAXIS (KENT) LTD,H212 0311 9999 - ABC TAXIS .PNG,Peoples Services Directorate,C.C.A Travel & Subsistance,H212,
http://opendatacommunities.org/id/london-borough-council/sutton,London Borough of Sutton,10/02/2020,1291103,160.00 , ALPHA TAXIS,160.00 - H212 0311 9999 - ALPHA TAXIS,Peoples Services Directorate,C.C.A Travel & Subsistance,H212,
http://opendatacommunities.org/id/london-borough-council/sutton,London Borough of Sutton,04/02/2020,1291103,57.26 , MINICABIT,TRAVEL,Peoples Services Directorate,C.C.A Food & Clothing,H213,
http://opendatacommunities.org/id/london-borough-council/sutton,London Borough of Sutton,06/02/2020,1291103,20.00 , OYSTER AUTO-TOP UP,20.00 A530 9999 OYSTER CARD.,Peoples Services Directorate,Travelling and Subsistence Allowances,A530,
http://opendatacommunities.org/id/london-borough-council/sutton,London Borough of Sutton,19/02/2020,1291103,20.00 , OYSTER AUTO-TOP UP,20.00 - A530 0312 9999 - OYSTER TOP UP,Peoples Services Directorate,Travelling and Subsistence Allowances,A530,
http://opendatacommunities.org/id/london-borough-council/sutton,London Borough of Sutton,19/02/2020,1291103,20.00 , OYSTER BUS AUTOLOAD,20.00 - A530 0312 9999 - OYSTER TOP UP 1,Peoples Services Directorate,Travelling and Subsistence Allowances,A530,
http://opendatacommunities.org/id/london-borough-council/sutton,London Borough of Sutton,15/02/2020,1291103,20.00 , OYSTER AUTO-TOP UP,20.00 A530 0312 OYSTER CARD.,Peoples Services Directorate,Travelling and Subsistence Allowances,A530,
http://opendatacommunities.org/id/london-borough-council/sutton,London Borough of Sutton,14/02/2020,1291103,20.00 , OYSTER AUTO-TOP UP,20.00 A530 0312 OYSTER CARD,Peoples Services Directorate,Travelling and Subsistence Allowances,A530,
http://opendatacommunities.org/id/london-borough-council/sutton,London Borough of Sutton,09/02/2020,1291103,20.00 , OYSTER AUTO-TOP UP,20.00 - A530 0312 9999 - OYSTER TOP UP,Peoples Services Directorate,Travelling and Subsistence Allowances,A530,
http://opendatacommunities.org/id/london-borough-council/sutton,London Borough of Sutton,07/02/2020,1291103,132.00 , EZYS TAXIS LTD,TAXI,Peoples Services Directorate,Hired Peoples Transport (Children),E072,
http://opendatacommunities.org/id/london-borough-council/sutton,London Borough of Sutton,28/01/2020,1291103,30.00 , PP CROYDON CHAUFFEURS,130.00 E072 0312 9999 CAB.PDF,Peoples Services Directorate,Hired Peoples Transport (Children),E072,
http://opendatacommunities.org/id/london-borough-council/sutton,London Borough of Sutton,28/01/2020,1291103,130.00 , PP CROYDON CHAUFFEURS,130.00 E072 0312 9999 CAB.PDF,Peoples Services Directorate,Hired Peoples Transport (Children),E072,
http://opendatacommunities.org/id/london-borough-council/sutton,London Borough of Sutton,28/01/2020,1291103,8.06 , AMZNMKTPLACE,SPLIT - 12 X GOOD LUCK CARDS BY OLIVIA SAMUEL - FOLDING STYLE MULTI PACK WITH ENVELOPES (65.37%),Peoples Services Directorate,Personal Requisites,F106,
http://opendatacommunities.org/id/london-borough-council/sutton,London Borough of Sutton,28/01/2020,1291103,3.63 , AMZNMKTPLACE,"SPLIT - ECO-FRIENDLY, RECYCLED THANK YOU NOTE CARDS - 20 SIMPLE COLOURFUL THANK YOU NOTES WITH MATCHING GREEN RECYCLED ENVELOPES (29.44%)",Peoples Services Directorate,Personal Requisites,F106,
http://opendatacommunities.org/id/london-borough-council/sutton,London Borough of Sutton,28/01/2020,1291103,0.64 , AMZNMKTPLACE,BALANCING ENTRY AMOUNT (5.19%),Peoples Services Directorate,Personal Requisites,F106,
http://opendatacommunities.org/id/london-borough-council/sutton,London Borough of Sutton,27/01/2020,1291103,27.00 , WWW.BRENTGOV.UK,27.00 - F106 0312 9999 - NORTHWICK BIRTH CERTIFICATE,Peoples Services Directorate,Personal Requisites,F106,
http://opendatacommunities.org/id/london-borough-council/sutton,London Borough of Sutton,27/01/2020,1291103,22.00 , L B BARNET,22.00 - F106 0312 9999 - BARNET BIRTH CERTIFICATE,Peoples Services Directorate,Personal Requisites,F106,
http://opendatacommunities.org/id/london-borough-council/sutton,London Borough of Sutton,04/02/2020,1291103,22.00 , LBSUTTON,DOCUMENTATION,Peoples Services Directorate,Personal Requisites,F106,
http://opendatacommunities.org/id/london-borough-council/sutton,London Borough of Sutton,03/02/2020,1291103,22.00 , LBSUTTON,DOCUMENTATION,Peoples Services Directorate,Personal Requisites,F106,
http://opendatacommunities.org/id/london-borough-council/sutton,London Borough of Sutton,03/02/2020,1291103,33.00 , LBSUTTON,DOCUMENTATION,Peoples Services Directorate,Personal Requisites,F106,
http://opendatacommunities.org/id/london-borough-council/sutton,London Borough of Sutton,05/02/2020,1291103,127.00 , HM PASSPORT,127.00 - F106 0312 9999 - FAST TRACK 1 WEEK PASSPORT APPOINTMENT .PNG,Peoples Services Directorate,Personal Requisites,F106,
http://opendatacommunities.org/id/london-borough-council/sutton,London Borough of Sutton,19/02/2020,1291103,9.54 , AMZNMKTPLACE,FOREIGN EXCHANGE FEE F106 0312 9999,Peoples Services Directorate,Personal Requisites,F106,
http://opendatacommunities.org/id/london-borough-council/sutton,London Borough of Sutton,25/02/2020,1291103,22.00 , LBSUTTON,22.00 F106 0312 9999 BIRTH CERT.PDF,Peoples Services Directorate,Personal Requisites,F106,
http://opendatacommunities.org/id/london-borough-council/sutton,London Borough of Sutton,18/02/2020,1291103,346.90 , STEFFAS & ASSOCIATES P,$450.00 - F299 0312 9999 - STEFFAS & ASSOCIATES P.C.,Peoples Services Directorate,Fees - Other,F299,
http://opendatacommunities.org/id/london-borough-council/sutton,London Borough of Sutton,26/02/2020,1291103,44.75 , STEFFAS & ASSOCIATES P,FEES FOR $2101.25 - F299 0312 9999 - STEFFAS ASSOCIATES PC .PNG,Peoples Services Directorate,Fees - Other,F299,
http://opendatacommunities.org/id/london-borough-council/sutton,London Borough of Sutton,25/02/2020,1291103,"1,627.24 ", STEFFAS & ASSOCIATES P,$2101.25 - F299 0312 9999 - STEFFAS ASSOCIATES PC .PNG,Peoples Services Directorate,Fees - Other,F299,
http://opendatacommunities.org/id/london-borough-council/sutton,London Borough of Sutton,12/02/2020,1291103,64.00 , KARDEN HOUSE,64.00 - H202 0312 9999 - KARDEN HOUSE HOTEL BOOKING .PN,Peoples Services Directorate,Accommodation - Bed and Breakfast,H202,
http://opendatacommunities.org/id/london-borough-council/sutton,London Borough of Sutton,29/01/2020,1291103,64.00 , KARDEN HOUSE,64.00 - H202 0312 9999 - KARDEN HOUSE HOTEL BOOKING .PNG,Peoples Services Directorate,Accommodation - Bed and Breakfast,H202,
http://opendatacommunities.org/id/london-borough-council/sutton,London Borough of Sutton,18/02/2020,1291103,66.50 , PREMIER INN,66.50 - H202 0312 9999 - PREMIER INN DURHAM NEWTON,Peoples Services Directorate,Accommodation - Bed and Breakfast,H202,
http://opendatacommunities.org/id/london-borough-council/sutton,London Borough of Sutton,18/02/2020,1291103,66.50 , PREMIER INN,66.50 - H202 0312 9999 - PREMIER INN DURHAM NEWTON,Peoples Services Directorate,Accommodation - Bed and Breakfast,H202,
http://opendatacommunities.org/id/london-borough-council/sutton,London Borough of Sutton,25/02/2020,1291103,64.00 , KARDEN HOUSE,64.00 - H202 0312 9999 - KARDEN HOUSE HOTEL BOOKING .PNG,Peoples Services Directorate,Accommodation - Bed and Breakfast,H202,
http://opendatacommunities.org/id/london-borough-council/sutton,London Borough of Sutton,20/02/2020,1291103,69.50 , PREMIER INN,69.50 - H202 0312 9999 - PREMIER INN .PNG,Peoples Services Directorate,Payments Under the Child Care Act 1980,H210,
http://opendatacommunities.org/id/london-borough-council/sutton,London Borough of Sutton,07/02/2020,1291103,100.00 , ABC TAXIS (KENT) LTD,CLIENT TRANSPORT,Peoples Services Directorate,C.C.A Travel & Subsistance,H212,
http://opendatacommunities.org/id/london-borough-council/sutton,London Borough of Sutton,07/02/2020,1291103,98.80 , PP CROYDON CHAUFFEURS,98.80 - H212 0312 9999 - CROYDON CHAUFFEUR TAXI .PNG,Peoples Services Directorate,C.C.A Travel & Subsistance,H212,
http://opendatacommunities.org/id/london-borough-council/sutton,London Borough of Sutton,25/02/2020,1291103,150.00 , TAXIPAY TAXI FARE,150.00 - H212 0312 9999 - COURT TEAM TAXI PREMIER CARS .PNG,Peoples Services Directorate,C.C.A Travel & Subsistance,H212,
http://opendatacommunities.org/id/london-borough-council/sutton,London Borough of Sutton,19/02/2020,1291103,214.00 , MADE.COM,214.00 - H301 0312 9999 - MADE SOFA BED .PNG,Peoples Services Directorate,Client Care/Assistance,H301,
http://opendatacommunities.org/id/london-borough-council/sutton,London Borough of Sutton,01/02/2020,1291103,20.00 , OYSTER BUS AUTOLOAD,20.00 - A530 0318 9999 - OYSTER TOP UP,Peoples Services Directorate,Travelling and Subsistence Allowances,A530,
http://opendatacommunities.org/id/london-borough-council/sutton,London Borough of Sutton,30/01/2020,1291103,20.00 , OYSTER BUS AUTOLOAD,20.00 - A530 0318 9999 - OYSTER TOP UP,Peoples Services Directorate,Travelling and Subsistence Allowances,A530,
http://opendatacommunities.org/id/london-borough-council/sutton,London Borough of Sutton,23/02/2020,1291103,20.00 , OYSTER AUTO-TOP UP,20.00 - A530 0318 9999 - OYSTER TOP UP 24TH,Peoples Services Directorate,Travelling and Subsistence Allowances,A530,
http://opendatacommunities.org/id/london-borough-council/sutton,London Borough of Sutton,07/02/2020,1291103,20.00 , OYSTER BUS AUTOLOAD,20.00 - A530 0318 9999 - OYSTER TOP UP 1ST FEB,Peoples Services Directorate,Travelling and Subsistence Allowances,A530,
http://opendatacommunities.org/id/london-borough-council/sutton,London Borough of Sutton,05/02/2020,1291103,20.00 , OYSTER BUS AUTOLOAD,20.00 - A530 0320 9999 - OYSTER TOP UP,Peoples Services Directorate,Travelling and Subsistence Allowances,A530,
http://opendatacommunities.org/id/london-borough-council/sutton,London Borough of Sutton,02/02/2020,1291103,20.00 , OYSTER BUS AUTOLOAD,20.00 - A530 0320 9999 - OYSTER TOP UP,Peoples Services Directorate,Travelling and Subsistence Allowances,A530,
http://opendatacommunities.org/id/london-borough-council/sutton,London Borough of Sutton,08/02/2020,1291103,20.00 , OYSTER AUTO-TOP UP,20.00 - A530 0320 9999 - OYSTER TOP UP,Peoples Services Directorate,Travelling and Subsistence Allowances,A530,
http://opendatacommunities.org/id/london-borough-council/sutton,London Borough of Sutton,11/02/2020,1291103,90.00 , FACEBK MLFXVQE3V2,FOSTERING FACEBOOK ADVERTISING,Peoples Services Directorate,Fees - Other,F299,
http://opendatacommunities.org/id/london-borough-council/sutton,London Borough of Sutton,29/01/2020,1291103,20.00 , OYSTER AUTO-TOP UP,20.00 - A530 0321 9999 - OYSTER TOP UP,Peoples Services Directorate,Travelling and Subsistence Allowances,A530,
http://opendatacommunities.org/id/london-borough-council/sutton,London Borough of Sutton,21/02/2020,1291103,115.00 , HOLIDAY INNS,115.00 - H202 0323 9999 - HOLIDAY INN SUTTON,Peoples Services Directorate,Accommodation - Bed and Breakfast,H202,
http://opendatacommunities.org/id/london-borough-council/sutton,London Borough of Sutton,24/02/2020,1291103,(3.49), AMZ AMAZON US,"SPLIT - HIPPIH 2 PACK SILENT WALL CLOCK, 10 INCH NON TICKING DIGITAL QUIET SWEEP DECORATIVE CLOCKS, BLACK (100%)",Peoples Services Directorate,Personal Requisites,F106,
http://opendatacommunities.org/id/london-borough-council/sutton,London Borough of Sutton,29/01/2020,1291103,6.89 , AMZNMKTPLACE,EQUIPMENT,Peoples Services Directorate,Personal Requisites,F106,
http://opendatacommunities.org/id/london-borough-council/sutton,London Borough of Sutton,29/01/2020,1291103,44.08 , TESCO STORES 5999,CONTACT EQUIPMENT,Peoples Services Directorate,Personal Requisites,F106,
http://opendatacommunities.org/id/london-borough-council/sutton,London Borough of Sutton,06/02/2020,1291103,19.16 , AMZNMKTPLACE,SPLIT - 200 X 12OZ / 360ML KRAFT TRIPLE WALLED DISPOSABLE PAPER RIPPLE CUPS DISPOSABLE COFFEE TEA CUPS DISPOSABLE HOT DRINK CUPS + LIDS COMPLETELY FREE (100%),Peoples Services Directorate,Personal Requisites,F106,
http://opendatacommunities.org/id/london-borough-council/sutton,London Borough of Sutton,29/01/2020,1291103,11.06 , AMZN MKTP UK H82ST7X65,"SPLIT - HIPPIH 2 PACK SILENT WALL CLOCK, 10 INCH NON TICKING DIGITAL QUIET SWEEP DECORATIVE CLOCKS, BLACK (52.79%)",Peoples Services Directorate,Provisions - General,F150,
http://opendatacommunities.org/id/london-borough-council/sutton,London Borough of Sutton,29/01/2020,1291103,9.89 , AMZN MKTP UK H82ST7X65,BALANCING ENTRY AMOUNT (47.21%),Peoples Services Directorate,Provisions - General,F150,
http://opendatacommunities.org/id/london-borough-council/sutton,London Borough of Sutton,29/01/2020,1291103,22.99 , AMZNMKTPLACE,SPLIT - CLINELL PREMIUM HAND SANITISING DISINFECTANT CLEANING GEL PUMP & PRESS CLIP 250ML X 6 BOTTLES (100%),Peoples Services Directorate,Provisions - General,F150,
http://opendatacommunities.org/id/london-borough-council/sutton,London Borough of Sutton,29/01/2020,1291103,9.37 , AMZNMKTPLACE,"SPLIT - CLASSIC BEAD TABLE FORKS, 18/0 STAINLESS STEEL, MIRROR FINISH - EVERYDAY PARISH CUTLERY (PACK OF 12) (45.77%)",Peoples Services Directorate,Provisions - General,F150,
http://opendatacommunities.org/id/london-borough-council/sutton,London Borough of Sutton,29/01/2020,1291103,6.99 , AMZNMKTPLACE,SPLIT - NORJEWS BABY HOME SAFETY SOCKET COVERS CHILD PROOF PLUG SOCKET PROTECTORS/GUARDS (20 PACKS) (34.15%),Peoples Services Directorate,Provisions - General,F150,
http://opendatacommunities.org/id/london-borough-council/sutton,London Borough of Sutton,29/01/2020,1291103,4.11 , AMZNMKTPLACE,BALANCING ENTRY AMOUNT (20.08%),Peoples Services Directorate,Provisions - General,F150,
http://opendatacommunities.org/id/london-borough-council/sutton,London Borough of Sutton,06/02/2020,1291103,20.00 , OYSTER BUS AUTOLOAD,20.00 A530 0359 9999 OYSTER CARD,Peoples Services Directorate,Travelling and Subsistence Allowances,A530,
http://opendatacommunities.org/id/london-borough-council/sutton,London Borough of Sutton,05/02/2020,1291103,20.00 , OYSTER AUTO-TOP UP,20.00 - A530 0359 9999 - OYSTER TOP UP,Peoples Services Directorate,Travelling and Subsistence Allowances,A530,
http://opendatacommunities.org/id/london-borough-council/sutton,London Borough of Sutton,01/02/2020,1291103,20.00 , OYSTER BUS AUTOLOAD,20.00 - A530 0359 9999 - OYSTER TOP UP,Peoples Services Directorate,Travelling and Subsistence Allowances,A530,
http://opendatacommunities.org/id/london-borough-council/sutton,London Borough of Sutton,30/01/2020,1291103,20.00 , OYSTER BUS AUTOLOAD,20.00 - A530 0359 9999 - OYSTER TOP UP,Peoples Services Directorate,Travelling and Subsistence Allowances,A530,
http://opendatacommunities.org/id/london-borough-council/sutton,London Borough of Sutton,30/01/2020,1291103,20.00 , OYSTER BUS AUTOLOAD,20.00 - A530 0359 9999 - OYSTER TOP UP,Peoples Services Directorate,Travelling and Subsistence Allowances,A530,
http://opendatacommunities.org/id/london-borough-council/sutton,London Borough of Sutton,14/02/2020,1291103,64.00 , HOTEL ON BOOKING.COM,20.00 A530 0359 OYSTER CARD.PDF,Peoples Services Directorate,Travelling and Subsistence Allowances,A530,
http://opendatacommunities.org/id/london-borough-council/sutton,London Borough of Sutton,15/02/2020,1291103,20.00 , OYSTER BUS AUTOLOAD,20.00 A530 0359 OYSTER CARD.PDF,Peoples Services Directorate,Travelling and Subsistence Allowances,A530,
http://opendatacommunities.org/id/london-borough-council/sutton,London Borough of Sutton,05/02/2020,1291103,20.00 , OYSTER AUTO-TOP UP,20.00 - A530 0359 9999 - OYSTER TOP UP 7TH FEB .PNG,Peoples Services Directorate,Travelling and Subsistence Allowances,A530,
http://opendatacommunities.org/id/london-borough-council/sutton,London Borough of Sutton,23/02/2020,1291103,20.00 , OYSTER BUS AUTOLOAD,20.00 - A530 0359 9999 - OYSTER TOP UP,Peoples Services Directorate,Travelling and Subsistence Allowances,A530,
http://opendatacommunities.org/id/london-borough-council/sutton,London Borough of Sutton,19/02/2020,1291103,20.00 , OYSTER AUTO-TOP UP,20.00 - A530 0359 9999 - OYSTER TOP UP,Peoples Services Directorate,Travelling and Subsistence Allowances,A530,
http://opendatacommunities.org/id/london-borough-council/sutton,London Borough of Sutton,16/02/2020,1291103,20.00 , OYSTER AUTO-TOP UP,20.00 - A530 0359 9999 - OYSTER TOP UP,Peoples Services Directorate,Travelling and Subsistence Allowances,A530,
http://opendatacommunities.org/id/london-borough-council/sutton,London Borough of Sutton,15/02/2020,1291103,20.00 , OYSTER BUS AUTOLOAD,20.00 A530 OYSTER CARD,Peoples Services Directorate,Travelling and Subsistence Allowances,A530,
http://opendatacommunities.org/id/london-borough-council/sutton,London Borough of Sutton,14/02/2020,1291103,20.00 , OYSTER AUTO-TOP UP,20.00 A530 0359 OYSTER CARD.,Peoples Services Directorate,Travelling and Subsistence Allowances,A530,
http://opendatacommunities.org/id/london-borough-council/sutton,London Borough of Sutton,13/02/2020,1291103,20.00 , OYSTER BUS AUTOLOAD,20.00 - A530 0359 9999 - OYSTER TOP UP,Peoples Services Directorate,Travelling and Subsistence Allowances,A530,
http://opendatacommunities.org/id/london-borough-council/sutton,London Borough of Sutton,09/02/2020,1291103,20.00 , OYSTER BUS AUTOLOAD,20.00 - A530 9999 - OYSTER TOP UP,Peoples Services Directorate,Travelling and Subsistence Allowances,A530,
http://opendatacommunities.org/id/london-borough-council/sutton,London Borough of Sutton,08/02/2020,1291103,20.00 , OYSTER AUTO-TOP UP,20.00 - A530 0359 9999 - OYSTER TOP UP,Peoples Services Directorate,Travelling and Subsistence Allowances,A530,
http://opendatacommunities.org/id/london-borough-council/sutton,London Borough of Sutton,14/02/2020,1291103,(129.00), EB  KEEPING MISSING PE,TRAINING,Chief Executive's Directorate,Training - Course Fees,A520,
http://opendatacommunities.org/id/london-borough-council/sutton,London Borough of Sutton,30/01/2020,1291103,129.00 , EB  KEEPING MISSING PE,TRAINING,Chief Executive's Directorate,Training - Course Fees,A520,
http://opendatacommunities.org/id/london-borough-council/sutton,London Borough of Sutton,18/02/2020,1291103,"1,929.60 ", PAYPAL  PAMS ASSESS,1929.60 - A520 0366 0652 - PAMS ASSESSMENTS PAYPAL,Chief Executive's Directorate,Training - Course Fees,A520,
http://opendatacommunities.org/id/london-borough-council/sutton,London Borough of Sutton,28/01/2020,1291103,100.00 , AMAZON.CO.UK YQ7JG4SH5,SPLIT - A FOR AMAZON -  AMAZON.CO.UK EGIFT VOUCHER (100%),Chief Executive's Directorate,Client Care/Assistance,H301,
http://opendatacommunities.org/id/london-borough-council/sutton,London Borough of Sutton,24/02/2020,1291103,92.10 , AVANTI WEST COAST,TRAIN TICKETS TO MANCHESTER FOR WORKSHOP WITH NICE ON THE ANALYSIS OF BED BASED CARE STANDARDS,Chief Executive's Directorate,Travelling and Subsistence Allowances,A530,
http://opendatacommunities.org/id/london-borough-council/sutton,London Borough of Sutton,31/01/2020,1291103,799.90 , LINKEDIN-512 6512793,LINKEDLN,Peoples Services Directorate,Personal Requisites,F106,
http://opendatacommunities.org/id/london-borough-council/sutton,London Borough of Sutton,28/01/2020,1291103,513.00 , HI LEEDS BRIGHOUSE,ACCOMMODATION,Peoples Services Directorate,Accommodation - Bed and Breakfast,H202,
http://opendatacommunities.org/id/london-borough-council/sutton,London Borough of Sutton,31/01/2020,1291103,33.83 , IHS128629998PA02 2020-,DOCUMENTATION,Peoples Services Directorate,Client Care/Assistance,H301,
http://opendatacommunities.org/id/london-borough-council/sutton,London Borough of Sutton,31/01/2020,1291103,13.08 , UKVI 3JL0013595732,DOCUMENTATION,Peoples Services Directorate,Client Care/Assistance,H301,
http://opendatacommunities.org/id/london-borough-council/sutton,London Borough of Sutton,31/01/2020,1291103,13.08 , UKVI 3JL0013595887,DOCUMENTATION,Peoples Services Directorate,Client Care/Assistance,H301,
http://opendatacommunities.org/id/london-borough-council/sutton,London Borough of Sutton,30/01/2020,1291103,475.74 , UKVI 3JL0013595887,DOCUMENTATION,Peoples Services Directorate,Client Care/Assistance,H301,
http://opendatacommunities.org/id/london-borough-council/sutton,London Borough of Sutton,30/01/2020,1291103,475.74 , UKVI 3JL0013595732,DOCUMENTATION,Peoples Services Directorate,Client Care/Assistance,H301,
http://opendatacommunities.org/id/london-borough-council/sutton,London Borough of Sutton,30/01/2020,1291103,"1,230.36 ", IHS128629998PA02 2020-,DOCUMENTATION,Peoples Services Directorate,Client Care/Assistance,H301,
http://opendatacommunities.org/id/london-borough-council/sutton,London Borough of Sutton,19/02/2020,1291103,"1,244.20 ", EMIRATES AIRLINES (ABBR. EMIRATES),PLANE TICKETS EMIRATES,Peoples Services Directorate,Client Care/Assistance,H301,
http://opendatacommunities.org/id/london-borough-council/sutton,London Borough of Sutton,31/01/2020,1291103,33.83 , IHS256580942PA01 2020-,9034 - H301 0380 9999 - VISA PAYMENT .PNG,Peoples Services Directorate,Client Care/Assistance,H301,
http://opendatacommunities.org/id/london-borough-council/sutton,London Borough of Sutton,30/01/2020,1291103,"1,230.36 ", IHS256580942PA01 2020-,9034.00 ZAR (465) - H301 0380 9999 VISA APPLICATION .PNG,Peoples Services Directorate,Client Care/Assistance,H301,
http://opendatacommunities.org/id/london-borough-council/sutton,London Borough of Sutton,30/01/2020,1291103,20.00 , OYSTER BUS AUTOLOAD,TRAVEL,Peoples Services Directorate,Travelling and Subsistence Allowances,A530,
http://opendatacommunities.org/id/london-borough-council/sutton,London Borough of Sutton,19/02/2020,1291103,20.00 , OYSTER AUTO-TOP UP,20.00 - A530 0383 9999 - OYSTER TOP UP,Peoples Services Directorate,Travelling and Subsistence Allowances,A530,
http://opendatacommunities.org/id/london-borough-council/sutton,London Borough of Sutton,18/02/2020,1291103,88.18 , AMZNMKTPLACE,"SPLIT - POSTURITE PENGUIN AMBIDEXTROUS WIRELESS ERGONOMIC MOUSE | RECHARGEABLE, ALLEVIATES RSI, EASY-GLIDE, VERTICAL DESIGN, PC COMPUTER & APPLE MAC COMPATIBLE (BLACK/SILVER, SIZE: SMALL) (95.93%)",Peoples Services Directorate,Personal Requisites,F106,
http://opendatacommunities.org/id/london-borough-council/sutton,London Borough of Sutton,18/02/2020,1291103,3.74 , AMZNMKTPLACE,BALANCING ENTRY AMOUNT (4.07%),Peoples Services Directorate,Personal Requisites,F106,
http://opendatacommunities.org/id/london-borough-council/sutton,London Borough of Sutton,21/02/2020,1291103,54.00 , TEAMSPORT,54 - F106 0383 9999 - GO KARTING.PNG,Peoples Services Directorate,Personal Requisites,F106,
http://opendatacommunities.org/id/london-borough-council/sutton,London Borough of Sutton,01/02/2020,1291103,20.00 , OYSTER AUTO-TOP UP,20.00 - A530 0384 9999 - OYSTER TOP UP,Peoples Services Directorate,Travelling and Subsistence Allowances,A530,
http://opendatacommunities.org/id/london-borough-council/sutton,London Borough of Sutton,07/02/2020,1291103,20.00 , OYSTER AUTO-TOP UP,20.00 - A530 0384 9999 - OYSTER TOP UP,Peoples Services Directorate,Travelling and Subsistence Allowances,A530,
http://opendatacommunities.org/id/london-borough-council/sutton,London Borough of Sutton,02/02/2020,1291103,7.87 , AMAZON.CO.UK 152QB1BX5,SPLIT - NEW GRADE 9-1 GCSE MATHS AQA REVISION QUESTION CARDS - FOUNDATION (CGP GCSE MATHS 9-1 REVISION) (73.36%),Peoples Services Directorate,LAC - Education,F269,
http://opendatacommunities.org/id/london-borough-council/sutton,London Borough of Sutton,02/02/2020,1291103,2.56 , AMAZON.CO.UK 152QB1BX5,BALANCING ENTRY AMOUNT (26.64%),Peoples Services Directorate,LAC - Education,F269,
http://opendatacommunities.org/id/london-borough-council/sutton,London Borough of Sutton,31/01/2020,1291103,119.54 , IBIS EARLS COURT,IBIS HOTEL FOR NAVSH CONFERENCE,Peoples Services Directorate,LAC - Education,F269,
http://opendatacommunities.org/id/london-borough-council/sutton,London Borough of Sutton,29/01/2020,1291103,19.54 , AMAZON.CO.UK WR5XW1515,SPLIT - LONGMAN PHOTO DICTIONARY (79.92%),Peoples Services Directorate,LAC - Education,F269,
http://opendatacommunities.org/id/london-borough-council/sutton,London Borough of Sutton,29/01/2020,1291103,3.46 , AMAZON.CO.UK WR5XW1515,SPLIT - HANDWRITING TODAY: BK. 1 (HANDWRITING TODAY) (20.08%),Peoples Services Directorate,LAC - Education,F269,
http://opendatacommunities.org/id/london-borough-council/sutton,London Borough of Sutton,29/01/2020,1291103,18.09 , AMAZON.CO.UK EZ0VL6CB5,SPLIT - LONGMAN PHOTO DICTIONARY (100%),Peoples Services Directorate,LAC - Education,F269,
http://opendatacommunities.org/id/london-borough-council/sutton,London Borough of Sutton,29/01/2020,1291103,62.00 , DSA,DRIVING ASSESSMENT CLA,Peoples Services Directorate,LAC - Education,F269,
http://opendatacommunities.org/id/london-borough-council/sutton,London Borough of Sutton,29/01/2020,1291103,3.52 , AMAZON.CO.UK J43O950Z5,SPLIT - TIMES TABLES WORKBOOK AGES 7-11: NEW EDITION: EASY TIMES TABLES PRACTICE BOOK FOR YEARS 3 TO 6 (COLLINS EASY LEARNING KS2) (100%),Peoples Services Directorate,LAC - Education,F269,
http://opendatacommunities.org/id/london-borough-council/sutton,London Borough of Sutton,06/02/2020,1291103,177.07 , AMZNMKTPLACE,"SPLIT - ASUS E406MA 14 INCH HD CLOUDBOOK WITH MICROSOFT OFFICE 365 (INTEL N4000 PROCESSOR, 64 GB EMMC, 4 GB RAM, WINDOWS 10 S) (100%)",Peoples Services Directorate,LAC - Education,F269,
http://opendatacommunities.org/id/london-borough-council/sutton,London Borough of Sutton,06/02/2020,1291103,8.12 , AMAZON.CO.UK TM24I1RB5,"SPLIT - SANDISK ULTRA USB FLASH DRIVE USB 3.0 UP TO 100 MB/S - BLACK, 64GB (72.26%)",Peoples Services Directorate,LAC - Education,F269,
http://opendatacommunities.org/id/london-borough-council/sutton,London Borough of Sutton,06/02/2020,1291103,3.11 , AMAZON.CO.UK TM24I1RB5,BALANCING ENTRY AMOUNT (27.74%),Peoples Services Directorate,LAC - Education,F269,
http://opendatacommunities.org/id/london-borough-council/sutton,London Borough of Sutton,05/02/2020,1291103,18.03 , AMAZON.CO.UK HB6SA2L05,SPLIT - LONGMAN PHOTO DICTIONARY (100%),Peoples Services Directorate,LAC - Education,F269,
http://opendatacommunities.org/id/london-borough-council/sutton,London Borough of Sutton,05/02/2020,1291103,3.47 , AMAZON.CO.UK SI7VK1JT5,"SPLIT - SPELLING, PUNCTUATION AND GRAMMAR FOR KS3 - WORKBOOK (WITH ANSWERS) (CGP KS3 ENGLISH) (31.83%)",Peoples Services Directorate,LAC - Education,F269,
http://opendatacommunities.org/id/london-borough-council/sutton,London Borough of Sutton,05/02/2020,1291103,8.63 , AMAZON.CO.UK SI7VK1JT5,SPLIT - NEW KS3 MATHS COMPLETE STUDY & PRACTICE - FOUNDATION (WITH ONLINE EDITION) (CGP KS3 MATHS) (68.17%),Peoples Services Directorate,LAC - Education,F269,
http://opendatacommunities.org/id/london-borough-council/sutton,London Borough of Sutton,05/02/2020,1291103,2.59 , AMZNMKTPLACE,"SPLIT - KS3 ENGLISH LITERACY STRATEGY - BOOK 2, LEVELS 5-6: BOOK 2 (LEVELS 5-6) PT. 1 & 2 (NATIONAL STRATEGY) (100%)",Peoples Services Directorate,LAC - Education,F269,
http://opendatacommunities.org/id/london-borough-council/sutton,London Borough of Sutton,04/02/2020,1291103,7.03 , AMAZON.CO.UK 127PV4J65,SPLIT - NEW FUNCTIONAL SKILLS MATHS: EDEXCEL ENTRY LEVEL 3 - STUDY & TEST PRACTICE (FOR 2019 & BEYOND) (CGP FUNCTIONAL SKILLS) (52.5%),Peoples Services Directorate,LAC - Education,F269,
http://opendatacommunities.org/id/london-borough-council/sutton,London Borough of Sutton,04/02/2020,1291103,6.36 , AMAZON.CO.UK 127PV4J65,SPLIT - SHORT STORIES FOR ELEMENTARY LEVEL ENGLISH LEARNERS (47.5%),Peoples Services Directorate,LAC - Education,F269,
http://opendatacommunities.org/id/london-borough-council/sutton,London Borough of Sutton,28/01/2020,1291103,79.68 , PAYPAL  YOUTHINMIND,SDQ CREDITS FOR PEP ANALYSIS,Peoples Services Directorate,LAC - Education,F269,
http://opendatacommunities.org/id/london-borough-council/sutton,London Borough of Sutton,25/02/2020,1291103,10.42 , AMZNMKTPLACE,SPLIT - LOGITECH OEM S150 2.0 SPEAKER SYSTEM - BLACK (49.25%),Peoples Services Directorate,LAC - Education,F269,
http://opendatacommunities.org/id/london-borough-council/sutton,London Borough of Sutton,25/02/2020,1291103,7.62 , AMZNMKTPLACE,"SPLIT - RESULTSPORT® THERAPEUTIC HAND EXERCISE GEL STRESS BALLS SET OF 2 FIRM/SOFT FOR ADULTS & KIDS - ARTHRITIS RELIEF, STROKE REHABILITATION, GRIP STRENGTH, WRIST SUPPORT (36.01%)",Peoples Services Directorate,LAC - Education,F269,
http://opendatacommunities.org/id/london-borough-council/sutton,London Borough of Sutton,25/02/2020,1291103,3.11 , AMZNMKTPLACE,BALANCING ENTRY AMOUNT (14.74%),Peoples Services Directorate,LAC - Education,F269,
http://opendatacommunities.org/id/london-borough-council/sutton,London Borough of Sutton,24/02/2020,1291103,40.00 , OYSTER ONLINE,OYSTER CARD TOP UP AND SET UP,"Environment, Housing & Regeneration Directorate",General Office Expenses,F235,
http://opendatacommunities.org/id/london-borough-council/sutton,London Borough of Sutton,28/01/2020,1291103,25.00 , J LEON & CO,PURCHASE AND TOP UP OYSTER CARD,"Environment, Housing & Regeneration Directorate",General Office Expenses,F235,
http://opendatacommunities.org/id/london-borough-council/sutton,London Borough of Sutton,01/02/2020,1291103,20.00 , OYSTER AUTO-TOP UP,OYSTERCARD TOP UP,"Environment, Housing & Regeneration Directorate",General Office Expenses,F235,
http://opendatacommunities.org/id/london-borough-council/sutton,London Borough of Sutton,06/02/2020,1291103,20.00 , WORCESTER PARK POST OF,OYSTER TOP UP X 2,Resources Directorate,Travelling and Subsistence Allowances,A530,
http://opendatacommunities.org/id/london-borough-council/sutton,London Borough of Sutton,06/02/2020,1291103,10.00 , SWRAILWAYSELFSERVE,SWRAILWAYSELFSERVE,Resources Directorate,Travelling and Subsistence Allowances,A530,
http://opendatacommunities.org/id/london-borough-council/sutton,London Borough of Sutton,03/02/2020,1291103,8.32 , SPOTIFY UK,MUSIC FOR WEDDINGS,Resources Directorate,Subscriptions - General,F450,
http://opendatacommunities.org/id/london-borough-council/sutton,London Borough of Sutton,19/02/2020,1291103,8.75 , TESCO STORE 3235,BISCUITS FOR MEETING/MUGS,Resources Directorate,Miscellaneous Expenses,F620,
http://opendatacommunities.org/id/london-borough-council/sutton,London Borough of Sutton,08/02/2020,1291103,15.83 , TESCO STORE 3235,SUNDRIE ITEMS TEA TOWELS/MUGS /COMPOST,Resources Directorate,Miscellaneous Expenses,F620,
http://opendatacommunities.org/id/london-borough-council/sutton,London Borough of Sutton,04/02/2020,1291103,4.17 , POUNDLAND LTD 1211,BATTERIES AND TAPE MEASURE,Resources Directorate,Miscellaneous Expenses,F620,
http://opendatacommunities.org/id/london-borough-council/sutton,London Borough of Sutton,04/02/2020,1291103,6.17 , WILKO RETAIL LIMITED,TISSUES,Resources Directorate,Miscellaneous Expenses,F620,
http://opendatacommunities.org/id/london-borough-council/sutton,London Borough of Sutton,30/01/2020,1291103,4.58 , ANTONIQUE DRY CLEANERS,TABLECLOTH LAUNDERED,Resources Directorate,Miscellaneous Expenses,F620,
http://opendatacommunities.org/id/london-borough-council/sutton,London Borough of Sutton,03/02/2020,1291103,53.49 , VISTAPR VISTAPRINT.COM,ADVERTISING BANNER FOR WEDDING FAIR,Resources Directorate,Miscellaneous Expenses,F620,
http://opendatacommunities.org/id/london-borough-council/sutton,London Borough of Sutton,23/02/2020,1291103,36.33 , WM MORRISONS STORE,PROSECCO AND TEA AND COFFEE AND SUGAR FOR THE WEDDING FAIR EVENT,Resources Directorate,Miscellaneous Expenses,F620,
http://opendatacommunities.org/id/london-borough-council/sutton,London Borough of Sutton,19/02/2020,1291103,10.00 , FACEBK T6SWQQNYB2,WEDDING FAIR FACEBOOK ADVERTISING CAMPAIGN RAN OVER THE MONTH TO A TARGETED AUDIENCE,Resources Directorate,Miscellaneous Expenses,F620,
http://opendatacommunities.org/id/london-borough-council/sutton,London Borough of Sutton,17/02/2020,1291103,5.22 , B & Q 1191,CABLES TIES AND STRING FOR WEDDING FAIR BANNER,Resources Directorate,Miscellaneous Expenses,F620,
http://opendatacommunities.org/id/london-borough-council/sutton,London Borough of Sutton,13/02/2020,1291103,5.83 , FACEBK GFUH4RJYB2,WEDDING FAIR FACEBOOK ADVERTISING CAMPAIGN RAN OVER THE MONTH TO A TARGETED AUDIENCE,Resources Directorate,Miscellaneous Expenses,F620,
http://opendatacommunities.org/id/london-borough-council/sutton,London Borough of Sutton,10/02/2020,1291103,16.67 , DAWSONS,BANNER FOR WEDDING FAIR DATES ADDED WITH VINYL LETTERS,Resources Directorate,Miscellaneous Expenses,F620,
http://opendatacommunities.org/id/london-borough-council/sutton,London Borough of Sutton,09/02/2020,1291103,4.17 , FACEBK U68NARSXB2,WEDDING FAIR FACEBOOK ADVERTISING CAMPAIGN RAN OVER THE MONTH TO A TARGETED AUDIENCE,Resources Directorate,Miscellaneous Expenses,F620,
http://opendatacommunities.org/id/london-borough-council/sutton,London Borough of Sutton,07/02/2020,1291103,2.50 , FACEBK 7DJSYQJYB2,WEDDING FAIR FACEBOOK ADVERTISING CAMPAIGN RAN OVER THE MONTH TO A TARGETED AUDIENCE,Resources Directorate,Miscellaneous Expenses,F620,
http://opendatacommunities.org/id/london-borough-council/sutton,London Borough of Sutton,05/02/2020,1291103,1.67 , FACEBK XBL8GQNYB2,WEDDING FAIR FACEBOOK ADVERTISING CAMPAIGN RAN OVER THE MONTH TO A TARGETED AUDIENCE,Resources Directorate,Miscellaneous Expenses,F620,
http://opendatacommunities.org/id/london-borough-council/sutton,London Borough of Sutton,04/02/2020,1291103,1.25 , FACEBK CP4UHQ6YB2,WEDDING FAIR FACEBOOK ADVERTISING CAMPAIGN RAN OVER THE MONTH TO A TARGETED AUDIENCE,Resources Directorate,Miscellaneous Expenses,F620,
http://opendatacommunities.org/id/london-borough-council/sutton,London Borough of Sutton,04/02/2020,1291103,0.68 , FACEBK 6949QQAYB2,WEDDING FAIR FACEBOOK ADVERTISING CAMPAIGN RAN OVER THE MONTH TO A TARGETED AUDIENCE,Resources Directorate,Miscellaneous Expenses,F620,
http://opendatacommunities.org/id/london-borough-council/sutton,London Borough of Sutton,11/02/2020,1291103,3.00 , POUNDLAND LTD 1211,CLIMATE EMERGENCY EVENT ACCESSORIES,"Environment, Housing & Regeneration Directorate",Community Initiatives,F322,
http://opendatacommunities.org/id/london-borough-council/sutton,London Borough of Sutton,17/02/2020,1291103,40.00 , OYSTER ONLINE,OYSTER TOP UP AND SET UP OF AUTO TOP UP,"Environment, Housing & Regeneration Directorate",General Office Expenses,F235,
http://opendatacommunities.org/id/london-borough-council/sutton,London Borough of Sutton,12/02/2020,1291103,50.00 , OYSTER ONLINE,OYSTER TOP UP,"Environment, Housing & Regeneration Directorate",General Office Expenses,F235,
http://opendatacommunities.org/id/london-borough-council/sutton,London Borough of Sutton,21/02/2020,1291103,20.00 , OYSTER BUS AUTOLOAD,TEAM OYSTER,Chief Executive's Directorate,Travelling and Subsistence Allowances,A530,
http://opendatacommunities.org/id/london-borough-council/sutton,London Borough of Sutton,21/02/2020,1291103,20.00 , OYSTER AUTO-TOP UP,TEAM OYSTER,Chief Executive's Directorate,Travelling and Subsistence Allowances,A530,
http://opendatacommunities.org/id/london-borough-council/sutton,London Borough of Sutton,20/02/2020,1291103,20.00 , OYSTER AUTO-TOP UP,TEAM OYSTER,Chief Executive's Directorate,Travelling and Subsistence Allowances,A530,
http://opendatacommunities.org/id/london-borough-council/sutton,London Borough of Sutton,19/02/2020,1291103,49.00 , AVANTI WEST COAST,TRAVEL RETURN BIRMINGHAM,Chief Executive's Directorate,Travelling and Subsistence Allowances,A530,
http://opendatacommunities.org/id/london-borough-council/sutton,London Borough of Sutton,12/02/2020,1291103,20.00 , OYSTER AUTO-TOP UP,TEAM OYSTER,Chief Executive's Directorate,Travelling and Subsistence Allowances,A530,
http://opendatacommunities.org/id/london-borough-council/sutton,London Borough of Sutton,07/02/2020,1291103,20.00 , OYSTER BUS AUTOLOAD,TEAM OYSTER,Chief Executive's Directorate,Travelling and Subsistence Allowances,A530,
http://opendatacommunities.org/id/london-borough-council/sutton,London Borough of Sutton,30/01/2020,1291103,20.00 , OYSTER AUTO-TOP UP,TEAM OYSTER,Chief Executive's Directorate,Travelling and Subsistence Allowances,A530,
http://opendatacommunities.org/id/london-borough-council/sutton,London Borough of Sutton,30/01/2020,1291103,4.40 , TFL TRAVEL CH,TEAM OYSTER,Chief Executive's Directorate,Travelling and Subsistence Allowances,A530,
http://opendatacommunities.org/id/london-borough-council/sutton,London Borough of Sutton,13/02/2020,1291103,(33.33), B & Q 1162,REFUND OF TWO LAMPS AS WEREN'T IN STOCK,Chief Executive's Directorate,Equipment including Meters,D520,
http://opendatacommunities.org/id/london-borough-council/sutton,London Borough of Sutton,12/02/2020,1291103,218.33 , B&Q DIRECT,12 LAMPS AND 12 LIGHT BULBS,Chief Executive's Directorate,Equipment including Meters,D520,
http://opendatacommunities.org/id/london-borough-council/sutton,London Borough of Sutton,17/02/2020,1291103,5.81 , MAILCHIMP    MONTHLY,WEB HOSTING,Chief Executive's Directorate,Fees - Computer Software,F384,
http://opendatacommunities.org/id/london-borough-council/sutton,London Borough of Sutton,14/02/2020,1291103,211.34 , MAILCHIMP    MONTHLY,WEB HOSTING,Chief Executive's Directorate,Fees - Computer Software,F384,
http://opendatacommunities.org/id/london-borough-council/sutton,London Borough of Sutton,19/02/2020,1291103,12.00 , MOVR LIMITED,CAB FOR KS DURING PHASED RETURN TO WORK FOLLOWING BROKEN WRIST,Resources Directorate,Travelling and Subsistence Allowances,A530,
http://opendatacommunities.org/id/london-borough-council/sutton,London Borough of Sutton,07/02/2020,1291103,61.95 , POSTURITE LTD,HEIGHT ADJUSTABLE LAPTOP STAND FOR MEMBER OF STAFF WITH WRIST INJURY,Resources Directorate,General Office Expenses,F235,
http://opendatacommunities.org/id/london-borough-council/sutton,London Borough of Sutton,28/01/2020,1291103,0.42 , TRANSCRIBE.WREALLY.COM,THIS GOES WITH THE TRANSCRIBE.WREALLY.COM TRANSACTION,Resources Directorate,Fees - Computer Software,F384,
http://opendatacommunities.org/id/london-borough-council/sutton,London Borough of Sutton,27/01/2020,1291103,15.31 , TRANSCRIBE.WREALLY.COM,ANNUAL TRANSCRIPTION FOR COMMITTEE SERVICES,Resources Directorate,Fees - Computer Software,F384,
http://opendatacommunities.org/id/london-borough-council/sutton,London Borough of Sutton,06/02/2020,1291103,"2,000.00 ", WM MORRISONS HO CREDIT,2000 - F620 4114 9999 - MORRISON VOUCHERS,Resources Directorate,Miscellaneous Expenses,F620,
http://opendatacommunities.org/id/london-borough-council/sutton,London Borough of Sutton,23/02/2020,1291103,127.00 , FACEBK RLX36RW9L2,DOMESTIC ABUSE CAMPAIGN VALENTINES DAY FACEBOOK ADVERTS,Chief Executive's Directorate,Printing - General,F215,
http://opendatacommunities.org/id/london-borough-council/sutton,London Borough of Sutton,16/02/2020,1291103,200.00 , FACEBK AW3RTSJAL2,VALENTINES DAY FACEBOOK ADVERTISING FOR DOMESTIC ABUSE CAMPAIGN,Chief Executive's Directorate,Corporate Publicity,F356,
http://opendatacommunities.org/id/london-borough-council/sutton,London Borough of Sutton,19/02/2020,1291103,99.95 , WWW.DRINKSTUFF.COM,CARAFFES FOR COUNCIL MEETINGS,Resources Directorate,Materials - General,F100,
http://opendatacommunities.org/id/london-borough-council/sutton,London Borough of Sutton,19/02/2020,1291103,218.00 , EAST SUSSEX,ACCOMMODATION FOR MS FOR 11TH AND 12TH MARCH,Resources Directorate,Materials - General,F100,
http://opendatacommunities.org/id/london-borough-council/sutton,London Borough of Sutton,11/02/2020,1291103,27.44 , AMZNMKTPLACE AMAZON.CO,CULTURE BID ACCESSORIES,Chief Executive's Directorate,Advertising/Publicity (non Staff),F240,
http://opendatacommunities.org/id/london-borough-council/sutton,London Borough of Sutton,26/02/2020,1291103,7.41 , BITEABLE PTY LTD,VIDEO SOFTWARE FOR CLIMATE EMERGENCY EVENT,Chief Executive's Directorate,Corporate Publicity,F356,
http://opendatacommunities.org/id/london-borough-council/sutton,London Borough of Sutton,04/02/2020,1291103,238.32 , WWW.FLAGPOLEEXPRESS.CO,MATERIAL FOR CULTURE BID PROJECT - FLAG POLE,Chief Executive's Directorate,Corporate Publicity,F356,
http://opendatacommunities.org/id/london-borough-council/sutton,London Borough of Sutton,25/02/2020,1291103,269.50 , BITEABLE PTY LTD,VIDEO SOFTWARE FOR CLIMATE EMERGENCY EVENT,Chief Executive's Directorate,Corporate Publicity,F356,
http://opendatacommunities.org/id/london-borough-council/sutton,London Borough of Sutton,25/02/2020,1291103,0.78 , PAYPAL  BENS. MUSIC,MUSIC PURCHASE FOR BUDGET COMMUNICATIONS PROJECT,Chief Executive's Directorate,Corporate Publicity,F356,
http://opendatacommunities.org/id/london-borough-council/sutton,London Borough of Sutton,24/02/2020,1291103,28.57 , PAYPAL  BENS. MUSIC,MUSIC PURCHASE FOR BUDGET COMMUNICATIONS PROJECT,Chief Executive's Directorate,Corporate Publicity,F356,
http://opendatacommunities.org/id/london-borough-council/sutton,London Borough of Sutton,17/02/2020,1291103,1.98 , CANVA  02603-8034986,DESIGN RESOURCES FOR BUDGET COMMS,Chief Executive's Directorate,Corporate Publicity,F356,
http://opendatacommunities.org/id/london-borough-council/sutton,London Borough of Sutton,06/02/2020,1291103,0.21 , IMGFLIP.COM PRO SUBSCR,FOREIGN EXCHANGE FEE,Chief Executive's Directorate,Corporate Publicity,F356,
http://opendatacommunities.org/id/london-borough-council/sutton,London Borough of Sutton,05/02/2020,1291103,9.95 , IMGFLIP.COM PRO SUBSCR,SPLIT - IMGFLIP PRO MONTHLY (129.56%),Chief Executive's Directorate,Corporate Publicity,F356,
http://opendatacommunities.org/id/london-borough-council/sutton,London Borough of Sutton,05/02/2020,1291103,(2.27), IMGFLIP.COM PRO SUBSCR,BALANCING ENTRY AMOUNT (-88.68%),Chief Executive's Directorate,Corporate Publicity,F356,
http://opendatacommunities.org/id/london-borough-council/sutton,London Borough of Sutton,05/02/2020,1291103,6.93 , CANVA  02591-12391966,CANVA ILLUSTRATIONS FOR COUNCIL A-Z,Chief Executive's Directorate,Corporate Publicity,F356,
http://opendatacommunities.org/id/london-borough-council/sutton,London Borough of Sutton,05/02/2020,1291103,0.99 , CANVA  02591-13931958,CANVA ILLUSTRATIONS FOR COUNCIL A-Z,Chief Executive's Directorate,Corporate Publicity,F356,
http://opendatacommunities.org/id/london-borough-council/sutton,London Borough of Sutton,04/02/2020,1291103,340.00 , WWW.PRCA.ORG.UK,PRCA DOMESTIC ABUSE AWARD ENTRY,Chief Executive's Directorate,Corporate Publicity,F356,
http://opendatacommunities.org/id/london-borough-council/sutton,London Borough of Sutton,01/02/2020,1291103,34.94 , FACEBK 44TRBRA4V2,ST HELIER ENGAGEMENT EVENT FACEBOOK ADVERTISING,Chief Executive's Directorate,Corporate Publicity,F356,
http://opendatacommunities.org/id/london-borough-council/sutton,London Borough of Sutton,25/02/2020,1291103,41.24 , DIGITAL RIVER,ANTI-VIRUS SOFTWARE,Chief Executive's Directorate,Purchase of Software,F381,
http://opendatacommunities.org/id/london-borough-council/sutton,London Borough of Sutton,18/02/2020,1291103,89.00 , THE BCI FORUM R/T,BCI SUBSCRIPTION (GP),"Environment, Housing & Regeneration Directorate",Subscriptions - General,F450,
http://opendatacommunities.org/id/london-borough-council/sutton,London Borough of Sutton,12/02/2020,1291103,102.87 , TRAINLINE,TRAIN TICKETS FOR RS TO ATTEND SMT CONFERENCE 19.03.20,Resources Directorate,Conferences - Fees,A525,
http://opendatacommunities.org/id/london-borough-council/sutton,London Borough of Sutton,19/02/2020,1291103,706.93 , ARGOS LTD,CL&G CREDIT CARD PURCHASE 706.93 190220,Resources Directorate,Grants,F473,
http://opendatacommunities.org/id/london-borough-council/sutton,London Borough of Sutton,18/02/2020,1291103,102.95 , ARGOS LTD,10056627 - PURCHASE REQUEST 537.93 180220,Resources Directorate,Grants,F473,
http://opendatacommunities.org/id/london-borough-council/sutton,London Borough of Sutton,18/02/2020,1291103,759.93 , ARGOS LTD,10023553 - PURCHASE REQUEST FORM 858.93 180220,Resources Directorate,Grants,F473,
http://opendatacommunities.org/id/london-borough-council/sutton,London Borough of Sutton,18/02/2020,1291103,99.00 , ARGOS LTD,10023553 - PURCHASE REQUEST FORM 858.93 180220,Resources Directorate,Grants,F473,
http://opendatacommunities.org/id/london-borough-council/sutton,London Borough of Sutton,18/02/2020,1291103,434.98 , ARGOS LTD,10056627 - PURCHASE REQUEST 537.93 180220,Resources Directorate,Grants,F473,
http://opendatacommunities.org/id/london-borough-council/sutton,London Borough of Sutton,17/02/2020,1291103,179.99 , ARGOS LTD,10049226 - CL&G - PURCHASE REQUEST 179.99 200220,Resources Directorate,Grants,F473,
http://opendatacommunities.org/id/london-borough-council/sutton,London Borough of Sutton,25/02/2020,1291103,102.95 , ARGOS LTD,PURCHASE OF DOUBLE MATTRESS FOR CRISIS GRANT,Resources Directorate,Grants,F473,
http://opendatacommunities.org/id/london-borough-council/sutton,London Borough of Sutton,24/02/2020,1291103,102.95 , ARGOS LTD,PURCHASE OF DOUBLE MATTRESS FOR CRISIS GRANT,Resources Directorate,Grants,F473,
http://opendatacommunities.org/id/london-borough-council/sutton,London Borough of Sutton,07/02/2020,1291103,82.95 , ARGOS LTD,PURCHASE OF SINGLE MATTRESS FOR CRISIS GRANT,Resources Directorate,Grants,F473,
http://opendatacommunities.org/id/london-borough-council/sutton,London Borough of Sutton,03/02/2020,1291103,439.98 , ARGOS LTD,PURCHASE OF FRIDGE FREEZER & ELECTRIC COOKER FOR CRISIS LOAN,Resources Directorate,Grants,F473,
http://opendatacommunities.org/id/london-borough-council/sutton,London Borough of Sutton,24/02/2020,1291103,(179.99), ARGOS LTD,10049226 - CL&G - PURCHASE REQUEST 179.99 200220,Resources Directorate,Grants,F473,
http://opendatacommunities.org/id/london-borough-council/sutton,London Borough of Sutton,21/02/2020,1291103,579.94 , ARGOS LTD,CGL PO FORM 10055391 CARTER 579.94 210220,Resources Directorate,Grants,F473,
http://opendatacommunities.org/id/london-borough-council/sutton,London Borough of Sutton,20/02/2020,1291103,99.99 , ARGOS LTD,CREDIT CARD PURCHASE WHEELER 99.99 200220,Resources Directorate,Grants,F473,
http://opendatacommunities.org/id/london-borough-council/sutton,London Borough of Sutton,19/02/2020,1291103,620.93 , ARGOS LTD,CREDIT CARD PURCHASE JM 620.93 190220,Resources Directorate,Grants,F473,
http://opendatacommunities.org/id/london-borough-council/sutton,London Borough of Sutton,08/02/2020,1291103,33.33 , OYSTER AUTO-TOP UP,REVENUES STAFF TRAVEL,Resources Directorate,Travelling and Subsistence Allowances,A530,
http://opendatacommunities.org/id/london-borough-council/sutton,London Borough of Sutton,19/02/2020,1291103,51.00 , WWW.GOV.UK,34 PROBATE CERTIFICATES,Resources Directorate,General Office Expenses,F235,
http://opendatacommunities.org/id/london-borough-council/sutton,London Borough of Sutton,28/01/2020,1291103,70.50 , WWW.GOV.UK,PROBATE CERTIFICATES X 47,Resources Directorate,General Office Expenses,F235,
http://opendatacommunities.org/id/london-borough-council/sutton,London Borough of Sutton,13/02/2020,1291103,33.33 , OYSTER AUTO-TOP UP,OYSTER TOP UP FOR BENEFITS TRAVEL,Resources Directorate,Travelling and Subsistence Allowances,A530,
http://opendatacommunities.org/id/london-borough-council/sutton,London Borough of Sutton,01/02/2020,1291103,16.67 , OYSTER AUTO-TOP UP,BENEFITS STAFF TRAVEL,Resources Directorate,Travelling and Subsistence Allowances,A530,
http://opendatacommunities.org/id/london-borough-council/sutton,London Borough of Sutton,20/02/2020,1291103,20.00 , OYSTER BUS AUTOLOAD,20.00 A530 6404 OYSTER CARD.PDF,Peoples Services Directorate,Travelling and Subsistence Allowances,A530,
http://opendatacommunities.org/id/london-borough-council/sutton,London Borough of Sutton,05/02/2020,1291103,126.65 , HOLIDAY INNS,126.65 H202 6404 HOLIDAY INN SUTTON.PDF,Peoples Services Directorate,Accommodation - Bed and Breakfast,H202,
http://opendatacommunities.org/id/london-borough-council/sutton,London Borough of Sutton,09/02/2020,1291103,20.00 , OYSTER BUS AUTOLOAD,20.00 - A530 6423 9999 - OYSTER TOP UP,Peoples Services Directorate,Travelling and Subsistence Allowances,A530,
http://opendatacommunities.org/id/london-borough-council/sutton,London Borough of Sutton,18/02/2020,1291103,40.70 , THETRAINLINE.COM,TRAIN TICKETS TO THE GLA CONFERENCE ON 02.03.20 RETURN TICKETS,Peoples Services Directorate,Miscellaneous Expenses,F620,
http://opendatacommunities.org/id/london-borough-council/sutton,London Borough of Sutton,12/02/2020,1291103,133.67 , HOTEL IBIS, HOTEL FOR GLA CONFERENCE ON 02.03.20,Peoples Services Directorate,Miscellaneous Expenses,F620,
http://opendatacommunities.org/id/london-borough-council/sutton,London Borough of Sutton,19/02/2020,1291103,177.50 , WWW.WEPRINTLANYARDS.CO,LANYARDS FOR PUBLIC HEALTH,Chief Executive's Directorate,Other-Materials,F115,
